Workbook

Sheet Прайс2
C2: Номер модуля | F2: ШИРИНА КОРПУСА | H2: Рисунок модуля | I2: ШИРИНА КОРПУСА | J2: ВЫСОТА КОРПУСА | K2: ГЛУБИНА КОРПУСА | L2: Валенсия 20 КЛАССИКА бук | M2: Валенсия 20 КЛАССИКА бук+патина | N2: Валенсия 20 КЛАССИКА ясень | O2: Валенсия 20 КЛАССИКА ясень+патина | P2: Валенсия 20 Премиум бук | Q2: Валенсия 20 Премиум бук+патина | R2: Валенсия 20 Премиум ясень | S2: Валенсия 20 Премиум ясень+патина
B3: 1 | C3: 1 | D3: =IF(C3<>0,LOOKUP(,-CODE(C$3:C3),C$3:C3),D2) -> 1 | E3: 1(300)-528 | F3: Тумба кухонная однодверная, полка ЛДСП | I3: 300 | J3: 720 | K3: 528 | L3: 4165.065739 | M3: 4461.746286 | N3: 5195.704827 | O3: 5492.385374 | P3: 4502.683601 | Q3: 4799.364148 | R3: 5504.497913 | S3: 5801.17846
C4: 0 | D4: =IF(C4<>0,LOOKUP(,-CODE(C$3:C4),C$3:C4),D3) -> 1 | E4: 1(350)-528 | F4: Тумба кухонная однодверный, полка ЛДСП | I4: 350 | J4: 720 | K4: 528 | L4: 4672.854997 | M4: 5019.481764 | N4: 5877.002349 | O4: 6223.629116 | P4: 5067.310884 | Q4: 5413.93765 | R4: 6237.780803 | S4: 6584.40757
C5: 0 | D5: =IF(C5<>0,LOOKUP(,-CODE(C$3:C5),C$3:C5),D4) -> 1 | E5: 1(400)-528 | F5: Тумба кухонная однодверный, полка ЛДСП | I5: 400 | J5: 720 | K5: 528 | L5: 5180.644255 | M5: 5577.217242 | N5: 6558.299871 | O5: 6954.872858 | P5: 5631.938166 | Q5: 6028.511152 | R5: 6971.063693 | S5: 7367.63668
C6: 0 | D6: =IF(C6<>0,LOOKUP(,-CODE(C$3:C6),C$3:C6),D5) -> 1 | E6: 1(450)-528 | F6: Тумба кухонная однодверный, полка ЛДСП | I6: 450 | J6: 720 | K6: 528 | L6: 5688.433513 | M6: 6134.95272 | N6: 7239.597393 | O6: 7686.1166 | P6: 6196.565448 | Q6: 6643.084654 | R6: 7704.346583 | S6: 8150.86579
C7: 0 | D7: =IF(C7<>0,LOOKUP(,-CODE(C$3:C7),C$3:C7),D6) -> 1 | E7: 1(500)-528 | F7: Тумба кухонная однодверный, полка ЛДСП | I7: 500 | J7: 720 | K7: 528 | L7: 6196.222771 | M7: 6692.688198 | N7: 7920.894915 | O7: 8417.360342 | P7: 6761.19273 | Q7: 7257.658156 | R7: 8437.629473 | S7: 8934.0949
C8: 0 | D8: =IF(C8<>0,LOOKUP(,-CODE(C$3:C8),C$3:C8),D7) -> 1 | E8: 1(550)-528 | F8: Тумба кухонная однодверный, полка ЛДСП | I8: 550 | J8: 720 | K8: 528 | L8: 6704.012029 | M8: 7250.423676 | N8: 8602.192437 | O8: 9148.604084 | P8: 7325.820012 | Q8: 7872.231658 | R8: 9170.912363 | S8: 9717.32401
C9: 0 | D9: =IF(C9<>0,LOOKUP(,-CODE(C$3:C9),C$3:C9),D8) -> 1 | E9: 1(600)-528 | F9: Тумба кухонная однодверный, полка ЛДСП | I9: 600 | J9: 720 | K9: 528 | L9: 7211.801287 | M9: 7808.159154 | N9: 9283.489959 | O9: 9879.847826 | P9: 7890.447294 | Q9: 8486.80516 | R9: 9904.195253 | S9: 10500.55312
B10: 3/1 | C10: 2 | D10: =IF(C10<>0,LOOKUP(,-CODE(C$3:C10),C$3:C10),D9) -> 2 | E10: 2-180(300)-528 | F10: Тумба кухонная однодверная с метабоксом, Н - 180 мм, полка ЛДСП | I10: 300 | J10: 720 | K10: 528 | L10: 5006.910425 | M10: 5302.34963 | N10: 6033.237215 | O10: 6328.676421 | P10: 5343.11566 | Q10: 5638.554866 | R10: 6340.73828 | S10: 6636.177485
C11: 0 | D11: =IF(C11<>0,LOOKUP(,-CODE(C$3:C11),C$3:C11),D10) -> 2 | E11: 2-180(350)-528 | F11: Тумба кухонная однодверный с метабоксом, Н - 140/180 мм, полка ЛДСП | I11: 350 | J11: 720 | K11: 528 | L11: 5536.381185 | M11: 5881.557631 | N11: 6735.490264 | O11: 7080.66671 | P11: 5929.186629 | Q11: 6274.363074 | R11: 7094.759185 | S11: 7439.93563
C12: 0 | D12: =IF(C12<>0,LOOKUP(,-CODE(C$3:C12),C$3:C12),D11) -> 2 | E12: 2-180(400)-528 | F12: Тумба кухонная однодверный с метабоксом, Н - 140/180 мм, полка ЛДСП | I12: 400 | J12: 720 | K12: 528 | L12: 6065.851946 | M12: 6460.765632 | N12: 7437.743313 | O12: 7832.656998 | P12: 6515.257597 | Q12: 6910.171283 | R12: 7848.780089 | S12: 8243.693775
C13: 0 | D13: =IF(C13<>0,LOOKUP(,-CODE(C$3:C13),C$3:C13),D12) -> 2 | E13: 2-180(450)-528 | F13: Тумба кухонная однодверный с метабоксом, Н - 140/180 мм, полка ЛДСП | I13: 450 | J13: 720 | K13: 528 | L13: 6595.322707 | M13: 7039.973632 | N13: 8139.996361 | O13: 8584.647287 | P13: 7101.328566 | Q13: 7545.979492 | R13: 8602.800994 | S13: 9047.45192
C14: 0 | D14: =IF(C14<>0,LOOKUP(,-CODE(C$3:C14),C$3:C14),D13) -> 2 | E14: 2-180(500)-528 | F14: Тумба кухонная однодверный с метабоксом, Н - 140/180 мм, полка ЛДСП | I14: 500 | J14: 720 | K14: 528 | L14: 7124.793467 | M14: 7619.181633 | N14: 8842.24941 | O14: 9336.637576 | P14: 7687.399535 | Q14: 8181.7877 | R14: 9356.821899 | S14: 9851.210064
C15: 0 | D15: =IF(C15<>0,LOOKUP(,-CODE(C$3:C15),C$3:C15),D14) -> 2 | E15: 2-180(550)-528 | F15: Тумба кухонная однодверный с метабоксом, Н - 140/180 мм, полка ЛДСП | I15: 550 | J15: 720 | K15: 528 | L15: 7654.264228 | M15: 8198.389634 | N15: 9544.502459 | O15: 10088.62786 | P15: 8273.470504 | Q15: 8817.595909 | R15: 10110.8428 | S15: 10654.96821
C16: 0 | D16: =IF(C16<>0,LOOKUP(,-CODE(C$3:C16),C$3:C16),D15) -> 2 | E16: 2-180(600)-528 | F16: Тумба кухонная однодверный с метабоксом, Н - 140/180 мм, полка ЛДСП | I16: 600 | J16: 720 | K16: 528 | L16: 8183.734989 | M16: 8777.597634 | N16: 10246.75551 | O16: 10840.61815 | P16: 8859.541472 | Q16: 9453.404118 | R16: 10864.86371 | S16: 11458.72635
B17: 4/1 | C17: 3 | D17: =IF(C17<>0,LOOKUP(,-CODE(C$3:C17),C$3:C17),D16) -> 3 | E17: 3-180(300)-528 | F17: Тумба кухонная однодверная с леграбоксом, Н - 180 мм, полка ЛДСП | I17: 300 | J17: 720 | K17: 528 | L17: 6345.321729 | M17: 6640.760935 | N17: 7371.64852 | O17: 7667.087725 | P17: 6681.526965 | Q17: 6976.96617 | R17: 7679.149584 | S17: 7974.58879
C18: 0 | D18: =IF(C18<>0,LOOKUP(,-CODE(C$3:C18),C$3:C18),D17) -> 3 | E18: 3-180(350)-528 | F18: Тумба кухонная однодверный с тандембоксом или леграбоксом, Н - 140/180 мм, полка ЛДСП | I18: 350 | J18: 720 | K18: 528 | L18: 6874.47749 | M18: 7219.653935 | N18: 8073.586568 | O18: 8418.763014 | P18: 7267.282933 | Q18: 7612.459379 | R18: 8432.855489 | S18: 8778.031935
C19: 0 | D19: =IF(C19<>0,LOOKUP(,-CODE(C$3:C19),C$3:C19),D18) -> 3 | E19: 3-180(400)-528 | F19: Тумба кухонная однодверный с тандембоксом или леграбоксом, Н - 140/180 мм, полка ЛДСП | I19: 400 | J19: 720 | K19: 528 | L19: 7403.63325 | M19: 7798.546936 | N19: 8775.524617 | O19: 9170.438303 | P19: 7853.038902 | Q19: 8247.952588 | R19: 9186.561394 | S19: 9581.475079
C20: 0 | D20: =IF(C20<>0,LOOKUP(,-CODE(C$3:C20),C$3:C20),D19) -> 3 | E20: 3-180(450)-528 | F20: Тумба кухонная однодверный с тандембоксом или леграбоксом, Н - 140/180 мм, полка ЛДСП | I20: 450 | J20: 720 | K20: 528 | L20: 7932.789011 | M20: 8377.439937 | N20: 9477.462666 | O20: 9922.113591 | P20: 8438.794871 | Q20: 8883.445796 | R20: 9940.267298 | S20: 10384.91822
C21: 0 | D21: =IF(C21<>0,LOOKUP(,-CODE(C$3:C21),C$3:C21),D20) -> 3 | E21: 3-180(500)-528 | F21: Тумба кухонная однодверный с тандембоксом или леграбоксом, Н - 140/180 мм, полка ЛДСП | I21: 500 | J21: 720 | K21: 528 | L21: 8461.944772 | M21: 8956.332937 | N21: 10179.40071 | O21: 10673.78888 | P21: 9024.550839 | Q21: 9518.939005 | R21: 10693.9732 | S21: 11188.36137
C22: 0 | D22: =IF(C22<>0,LOOKUP(,-CODE(C$3:C22),C$3:C22),D21) -> 3 | E22: 3-180(550)-528 | F22: Тумба кухонная однодверный с тандембоксом или леграбоксом, Н - 140/180 мм, полка ЛДСП | I22: 550 | J22: 720 | K22: 528 | L22: 8991.100533 | M22: 9535.225938 | N22: 10881.33876 | O22: 11425.46417 | P22: 9610.306808 | Q22: 10154.43221 | R22: 11447.67911 | S22: 11991.80451
C23: 0 | D23: =IF(C23<>0,LOOKUP(,-CODE(C$3:C23),C$3:C23),D22) -> 3 | E23: 3-180(600)-528 | F23: Тумба кухонная однодверный с тандембоксом или леграбоксом, Н - 140/180 мм, полка ЛДСП | I23: 600 | J23: 720 | K23: 528 | L23: 9520.256293 | M23: 10114.11894 | N23: 11583.27681 | O23: 12177.13946 | P23: 10196.06278 | Q23: 10789.92542 | R23: 12201.38501 | S23: 12795.24766
B24: 6 | C24: 4 | D24: =IF(C24<>0,LOOKUP(,-CODE(C$3:C24),C$3:C24),D23) -> 4 | E24: 4(600)-528 | F24: Тумба кухонная двухдверная, полка ЛДСП | I24: 600 | J24: 720 | K24: 528 | L24: 7529.182067 | M24: 8122.54316 | N24: 9590.460243 | O24: 10183.82134 | P24: 8204.417792 | Q24: 8797.778885 | R24: 10208.04641 | S24: 10801.40751
C25: 0 | D25: =IF(C25<>0,LOOKUP(,-CODE(C$3:C25),C$3:C25),D24) -> 4 | E25: 4(650)-528 | F25: Тумба кухонная двухдверный, полка ЛДСП | I25: 650 | J25: 720 | K25: 528 | L25: 8036.971325 | M25: 8680.278638 | N25: 10271.75776 | O25: 10915.06508 | P25: 8769.045074 | Q25: 9412.352387 | R25: 10941.3293 | S25: 11584.63662
C26: 0 | D26: =IF(C26<>0,LOOKUP(,-CODE(C$3:C26),C$3:C26),D25) -> 4 | E26: 4(700)-528 | F26: Тумба кухонная двухдверный, полка ЛДСП | I26: 700 | J26: 720 | K26: 528 | L26: 8544.760583 | M26: 9238.014116 | N26: 10953.05529 | O26: 11646.30882 | P26: 9333.672356 | Q26: 10026.92589 | R26: 11674.61219 | S26: 12367.86573
C27: 0 | D27: =IF(C27<>0,LOOKUP(,-CODE(C$3:C27),C$3:C27),D26) -> 4 | E27: 4(750)-528 | F27: Тумба кухонная двухдверный, полка ЛДСП | I27: 750 | J27: 720 | K27: 528 | L27: 9052.549841 | M27: 9795.749594 | N27: 11634.35281 | O27: 12377.55256 | P27: 9898.299638 | Q27: 10641.49939 | R27: 12407.89508 | S27: 13151.09484
C28: 0 | D28: =IF(C28<>0,LOOKUP(,-CODE(C$3:C28),C$3:C28),D27) -> 4 | E28: 4(800)-528 | F28: Тумба кухонная двухдверный, полка ЛДСП | I28: 800 | J28: 720 | K28: 528 | L28: 9560.339099 | M28: 10353.48507 | N28: 12315.65033 | O28: 13108.7963 | P28: 10462.92692 | Q28: 11256.07289 | R28: 13141.17797 | S28: 13934.32395
C29: 0 | D29: =IF(C29<>0,LOOKUP(,-CODE(C$3:C29),C$3:C29),D28) -> 4 | E29: 4(850)-528 | F29: Тумба кухонная двухдверный, полка ЛДСП | I29: 850 | J29: 720 | K29: 528 | L29: 10068.12836 | M29: 10911.22055 | N29: 12996.94785 | O29: 13840.04005 | P29: 11027.5542 | Q29: 11870.6464 | R29: 13874.46086 | S29: 14717.55306
C30: 0 | D30: =IF(C30<>0,LOOKUP(,-CODE(C$3:C30),C$3:C30),D29) -> 4 | E30: 4(900)-528 | F30: Тумба кухонная двухдверный, полка ЛДСП | I30: 900 | J30: 720 | K30: 528 | L30: 10575.91761 | M30: 11468.95603 | N30: 13678.24538 | O30: 14571.28379 | P30: 11592.18148 | Q30: 12485.2199 | R30: 14607.74375 | S30: 15500.78217
C31: 0 | D31: =IF(C31<>0,LOOKUP(,-CODE(C$3:C31),C$3:C31),D30) -> 4 | E31: 4(950)-528 | F31: Тумба кухонная двухдверный, полка ЛДСП | I31: 950 | J31: 720 | K31: 528 | L31: 11083.70687 | M31: 12026.69151 | N31: 14359.5429 | O31: 15302.52753 | P31: 12156.80877 | Q31: 13099.7934 | R31: 15341.02664 | S31: 16284.01128
C32: 0 | D32: =IF(C32<>0,LOOKUP(,-CODE(C$3:C32),C$3:C32),D31) -> 4 | E32: 4(1000)-528 | F32: Тумба кухонная двухдверный, полка ЛДСП | I32: 1000 | J32: 720 | K32: 528 | L32: 11591.49613 | M32: 12584.42698 | N32: 15040.84042 | O32: 16033.77127 | P32: 12721.43605 | Q32: 13714.3669 | R32: 16074.30953 | S32: 17067.24039
B33: 8/1 | C33: 5 | D33: =IF(C33<>0,LOOKUP(,-CODE(C$3:C33),C$3:C33),D32) -> 5 | E33: 5-180(600)-528 | F33: Тумба кухонная двухдверная с двумя метабоксами, Н - 180 мм, полка ЛДСП | I33: 600 | J33: 720 | K33: 528 | L33: 9442.8669 | M33: 10033.74531 | N33: 11495.52048 | O33: 12086.39889 | P33: 10115.27737 | Q33: 10706.15578 | R33: 12110.52261 | S33: 12701.40102
C34: 0 | D34: =IF(C34<>0,LOOKUP(,-CODE(C$3:C34),C$3:C34),D33) -> 5 | E34: 5-180(650)-528 | F34: Тумба кухонная двухдверный с двумя метабоксами, Н - 140/180 мм, полка ЛДСП | I34: 650 | J34: 720 | K34: 528 | L34: 9976.967154 | M34: 10617.58281 | N34: 12202.40302 | O34: 12843.01867 | P34: 10705.97783 | Q34: 11346.59348 | R34: 12869.17301 | S34: 13509.78866
C35: 0 | D35: =IF(C35<>0,LOOKUP(,-CODE(C$3:C35),C$3:C35),D34) -> 5 | E35: 5-180(700)-528 | F35: Тумба кухонная двухдверный с двумя метабоксами, Н - 140/180 мм, полка ЛДСП | I35: 700 | J35: 720 | K35: 528 | L35: 10511.06741 | M35: 11201.4203 | N35: 12909.28557 | O35: 13599.63846 | P35: 11296.6783 | Q35: 11987.03119 | R35: 13627.82341 | S35: 14318.1763
C36: 0 | D36: =IF(C36<>0,LOOKUP(,-CODE(C$3:C36),C$3:C36),D35) -> 5 | E36: 5-180(750)-528 | F36: Тумба кухонная двухдверный с двумя метабоксами, Н - 140/180 мм, полка ЛДСП | I36: 750 | J36: 720 | K36: 528 | L36: 11045.16766 | M36: 11785.25779 | N36: 13616.16811 | O36: 14356.25824 | P36: 11887.37876 | Q36: 12627.46889 | R36: 14386.4738 | S36: 15126.56394
C37: 0 | D37: =IF(C37<>0,LOOKUP(,-CODE(C$3:C37),C$3:C37),D36) -> 5 | E37: 5-180(800)-528 | F37: Тумба кухонная двухдверный с двумя метабоксами, Н - 140/180 мм, полка ЛДСП | I37: 800 | J37: 720 | K37: 528 | L37: 11579.26792 | M37: 12369.09529 | N37: 14323.05065 | O37: 15112.87802 | P37: 12478.07922 | Q37: 13267.90659 | R37: 15145.1242 | S37: 15934.95157
C38: 0 | D38: =IF(C38<>0,LOOKUP(,-CODE(C$3:C38),C$3:C38),D37) -> 5 | E38: 5-180(850)-528 | F38: Тумба кухонная двухдверный с двумя метабоксами, Н - 140/180 мм, полка ЛДСП | I38: 850 | J38: 720 | K38: 528 | L38: 12113.36817 | M38: 12952.93278 | N38: 15029.93319 | O38: 15869.4978 | P38: 13068.77968 | Q38: 13908.34429 | R38: 15903.7746 | S38: 16743.33921
C39: 0 | D39: =IF(C39<>0,LOOKUP(,-CODE(C$3:C39),C$3:C39),D38) -> 5 | E39: 5-180(900)-528 | F39: Тумба кухонная двухдверный с двумя метабоксами, Н - 140/180 мм, полка ЛДСП | I39: 900 | J39: 720 | K39: 528 | L39: 12647.46842 | M39: 13536.77028 | N39: 15736.81573 | O39: 16626.11758 | P39: 13659.48014 | Q39: 14548.78199 | R39: 16662.425 | S39: 17551.72685
C40: 0 | D40: =IF(C40<>0,LOOKUP(,-CODE(C$3:C40),C$3:C40),D39) -> 5 | E40: 5-180(950)-528 | F40: Тумба кухонная двухдверный с двумя метабоксами, Н - 140/180 мм, полка ЛДСП | I40: 950 | J40: 720 | K40: 528 | L40: 13181.56868 | M40: 14120.60777 | N40: 16443.69828 | O40: 17382.73737 | P40: 14250.18061 | Q40: 15189.2197 | R40: 17421.0754 | S40: 18360.11449
C41: 0 | D41: =IF(C41<>0,LOOKUP(,-CODE(C$3:C41),C$3:C41),D40) -> 5 | E41: 5-180(1000)-528 | F41: Тумба кухонная двухдверный с двумя метабоксами, Н - 140/180 мм, полка ЛДСП | I41: 1000 | J41: 720 | K41: 528 | L41: 13715.66893 | M41: 14704.44526 | N41: 17150.58082 | O41: 18139.35715 | P41: 14840.88107 | Q41: 15829.6574 | R41: 18179.7258 | S41: 19168.50213
B42: 219/1 | C42: 6 | D42: =IF(C42<>0,LOOKUP(,-CODE(C$3:C42),C$3:C42),D41) -> 6 | E42: 6-180(600)-528 | F42: Тумба кухонная двухдверная с двумя леграбоксами, Н - 180 мм, полка ЛДСП | I42: 600 | J42: 720 | K42: 528 | L42: 12119.68951 | M42: 12710.56792 | N42: 14172.34309 | O42: 14763.2215 | P42: 12792.09998 | Q42: 13382.97839 | R42: 14787.34522 | S42: 15378.22363
C43: 0 | D43: =IF(C43<>0,LOOKUP(,-CODE(C$3:C43),C$3:C43),D42) -> 6 | E43: 6-180(650)-528 | F43: Тумба кухонная двухдверный с двумя тандембоксами или леграбоксами, Н - 140/180 мм, полка ЛДСП | I43: 650 | J43: 720 | K43: 528 | L43: 12653.47476 | M43: 13294.09041 | N43: 14878.91063 | O43: 15519.52628 | P43: 13382.48544 | Q43: 14023.10109 | R43: 15545.68062 | S43: 16186.29627
C44: 0 | D44: =IF(C44<>0,LOOKUP(,-CODE(C$3:C44),C$3:C44),D43) -> 6 | E44: 6-180(700)-528 | F44: Тумба кухонная двухдверный с двумя тандембоксами или леграбоксами, Н - 140/180 мм, полка ЛДСП | I44: 700 | J44: 720 | K44: 528 | L44: 13187.26002 | M44: 13877.61291 | N44: 15585.47817 | O44: 16275.83107 | P44: 13972.8709 | Q44: 14663.2238 | R44: 16304.01602 | S44: 16994.36891
C45: 0 | D45: =IF(C45<>0,LOOKUP(,-CODE(C$3:C45),C$3:C45),D44) -> 6 | E45: 6-180(750)-528 | F45: Тумба кухонная двухдверный с двумя тандембоксами или леграбоксами, Н - 140/180 мм, полка ЛДСП | I45: 750 | J45: 720 | K45: 528 | L45: 13721.04527 | M45: 14461.1354 | N45: 16292.04572 | O45: 17032.13585 | P45: 14563.25637 | Q45: 15303.3465 | R45: 17062.35141 | S45: 17802.44155
C46: 0 | D46: =IF(C46<>0,LOOKUP(,-CODE(C$3:C46),C$3:C46),D45) -> 6 | E46: 6-180(800)-528 | F46: Тумба кухонная двухдверный с двумя тандембоксами или леграбоксами, Н - 140/180 мм, полка ЛДСП | I46: 800 | J46: 720 | K46: 528 | L46: 14254.83053 | M46: 15044.6579 | N46: 16998.61326 | O46: 17788.44063 | P46: 15153.64183 | Q46: 15943.4692 | R46: 17820.68681 | S46: 18610.51418
C47: 0 | D47: =IF(C47<>0,LOOKUP(,-CODE(C$3:C47),C$3:C47),D46) -> 6 | E47: 6-180(850)-528 | F47: Тумба кухонная двухдверный с двумя тандембоксами или леграбоксами, Н - 140/180 мм, полка ЛДСП | I47: 850 | J47: 720 | K47: 528 | L47: 14788.61578 | M47: 15628.18039 | N47: 17705.1808 | O47: 18544.74541 | P47: 15744.02729 | Q47: 16583.5919 | R47: 18579.02221 | S47: 19418.58682
C48: 0 | D48: =IF(C48<>0,LOOKUP(,-CODE(C$3:C48),C$3:C48),D47) -> 6 | E48: 6-180(900)-528 | F48: Тумба кухонная двухдверный с двумя тандембоксами или леграбоксами, Н - 140/180 мм, полка ЛДСП | I48: 900 | J48: 720 | K48: 528 | L48: 15322.40103 | M48: 16211.70288 | N48: 18411.74834 | O48: 19301.05019 | P48: 16334.41275 | Q48: 17223.7146 | R48: 19337.35761 | S48: 20226.65946
C49: 0 | D49: =IF(C49<>0,LOOKUP(,-CODE(C$3:C49),C$3:C49),D48) -> 6 | E49: 6-180(950)-528 | F49: Тумба кухонная двухдверный с двумя тандембоксами или леграбоксами, Н - 140/180 мм, полка ЛДСП | I49: 950 | J49: 720 | K49: 528 | L49: 15856.18629 | M49: 16795.22538 | N49: 19118.31588 | O49: 20057.35498 | P49: 16924.79821 | Q49: 17863.83731 | R49: 20095.69301 | S49: 21034.7321
C50: 0 | D50: =IF(C50<>0,LOOKUP(,-CODE(C$3:C50),C$3:C50),D49) -> 6 | E50: 6-180(1000)-528 | F50: Тумба кухонная двухдверный с двумя тандембоксами или леграбоксами, Н - 140/180 мм, полка ЛДСП | I50: 1000 | J50: 720 | K50: 528 | L50: 16389.97154 | M50: 17378.74787 | N50: 19824.88343 | O50: 20813.65976 | P50: 17515.18368 | Q50: 18503.96001 | R50: 20854.0284 | S50: 21842.80474
B51: 10/1 | C51: 7 | D51: =IF(C51<>0,LOOKUP(,-CODE(C$3:C51),C$3:C51),D50) -> 7 | E51: 7-180(600)-528 | F51: Тумба кухонная двухдверная с метабоксом, Н - 180 мм, полка ЛДСП | I51: 600 | J51: 720 | K51: 528 | L51: 8501.229317 | M51: 9092.107728 | N51: 10553.8829 | O51: 11144.76131 | P51: 9173.639788 | Q51: 9764.518199 | R51: 11168.88503 | S51: 11759.76344
C52: 0 | D52: =IF(C52<>0,LOOKUP(,-CODE(C$3:C52),C$3:C52),D51) -> 7 | E52: 7-180(650)-528 | F52: Тумба кухонная двухдверный с метабоксом, Н - 140/180 мм, полка ЛДСП | I52: 650 | J52: 720 | K52: 528 | L52: 9030.700078 | M52: 9671.315729 | N52: 11256.13595 | O52: 11896.7516 | P52: 9759.710757 | Q52: 10400.32641 | R52: 11922.90593 | S52: 12563.52158
C53: 0 | D53: =IF(C53<>0,LOOKUP(,-CODE(C$3:C53),C$3:C53),D52) -> 7 | E53: 7-180(700)-528 | F53: Тумба кухонная двухдверный с метабоксом, Н - 140/180 мм, полка ЛДСП | I53: 700 | J53: 720 | K53: 528 | L53: 9560.170839 | M53: 10250.52373 | N53: 11958.389 | O53: 12648.74189 | P53: 10345.78173 | Q53: 11036.13462 | R53: 12676.92684 | S53: 13367.27973
C54: 0 | D54: =IF(C54<>0,LOOKUP(,-CODE(C$3:C54),C$3:C54),D53) -> 7 | E54: 7-180(750)-528 | F54: Тумба кухонная двухдверный с метабоксом, Н - 140/180 мм, полка ЛДСП | I54: 750 | J54: 720 | K54: 528 | L54: 10089.6416 | M54: 10829.73173 | N54: 12660.64204 | O54: 13400.73218 | P54: 10931.85269 | Q54: 11671.94283 | R54: 13430.94774 | S54: 14171.03787
C55: 0 | D55: =IF(C55<>0,LOOKUP(,-CODE(C$3:C55),C$3:C55),D54) -> 7 | E55: 7-180(800)-528 | F55: Тумба кухонная двухдверный с метабоксом, Н - 140/180 мм, полка ЛДСП | I55: 800 | J55: 720 | K55: 528 | L55: 10619.11236 | M55: 11408.93973 | N55: 13362.89509 | O55: 14152.72246 | P55: 11517.92366 | Q55: 12307.75103 | R55: 14184.96865 | S55: 14974.79602
C56: 0 | D56: =IF(C56<>0,LOOKUP(,-CODE(C$3:C56),C$3:C56),D55) -> 7 | E56: 7-180(850)-528 | F56: Тумба кухонная двухдверный с метабоксом, Н - 140/180 мм, полка ЛДСП | I56: 850 | J56: 720 | K56: 528 | L56: 11148.58312 | M56: 11988.14773 | N56: 14065.14814 | O56: 14904.71275 | P56: 12103.99463 | Q56: 12943.55924 | R56: 14938.98955 | S56: 15778.55416
C57: 0 | D57: =IF(C57<>0,LOOKUP(,-CODE(C$3:C57),C$3:C57),D56) -> 7 | E57: 7-180(900)-528 | F57: Тумба кухонная двухдверный с метабоксом, Н - 140/180 мм, полка ЛДСП | I57: 900 | J57: 720 | K57: 528 | L57: 11678.05388 | M57: 12567.35573 | N57: 14767.40119 | O57: 15656.70304 | P57: 12690.0656 | Q57: 13579.36745 | R57: 15693.01046 | S57: 16582.31231
C58: 0 | D58: =IF(C58<>0,LOOKUP(,-CODE(C$3:C58),C$3:C58),D57) -> 7 | E58: 7-180(950)-528 | F58: Тумба кухонная двухдверный с метабоксом, Н - 140/180 мм, полка ЛДСП | I58: 950 | J58: 720 | K58: 528 | L58: 12207.52464 | M58: 13146.56373 | N58: 15469.65424 | O58: 16408.69333 | P58: 13276.13657 | Q58: 14215.17566 | R58: 16447.03136 | S58: 17386.07045
C59: 0 | D59: =IF(C59<>0,LOOKUP(,-CODE(C$3:C59),C$3:C59),D58) -> 7 | E59: 7-180(1000)-528 | F59: Тумба кухонная двухдверный с метабоксом, Н - 140/180 мм, полка ЛДСП | I59: 1000 | J59: 720 | K59: 528 | L59: 12736.9954 | M59: 13725.77173 | N59: 16171.90729 | O59: 17160.68362 | P59: 13862.20754 | Q59: 14850.98387 | R59: 17201.05227 | S59: 18189.8286
C60: 8 | D60: =IF(C60<>0,LOOKUP(,-CODE(C$3:C60),C$3:C60),D59) -> 8 | E60: 8-180(600)-528 | F60: Тумба кухонная двухдверная с леграбоксом, Н - 180 мм, полка ЛДСП | I60: 600 | J60: 720 | K60: 528 | L60: 9837.750622 | M60: 10428.62903 | N60: 11890.4042 | O60: 12481.28261 | P60: 10510.16109 | Q60: 11101.0395 | R60: 12505.40633 | S60: 13096.28474
C61: 0 | D61: =IF(C61<>0,LOOKUP(,-CODE(C$3:C61),C$3:C61),D60) -> 8 | E61: 8-180(650)-528 | F61: Тумба кухонная двухдверный с тандембоксом или леграбоксом, Н - 140/180 мм, полка ЛДСП | I61: 650 | J61: 720 | K61: 528 | L61: 10366.90638 | M61: 11007.52203 | N61: 12592.34225 | O61: 13232.9579 | P61: 11095.91706 | Q61: 11736.53271 | R61: 13259.11224 | S61: 13899.72789
C62: 0 | D62: =IF(C62<>0,LOOKUP(,-CODE(C$3:C62),C$3:C62),D61) -> 8 | E62: 8-180(700)-528 | F62: Тумба кухонная двухдверный с тандембоксом или леграбоксом, Н - 140/180 мм, полка ЛДСП | I62: 700 | J62: 720 | K62: 528 | L62: 10896.06214 | M62: 11586.41503 | N62: 13294.2803 | O62: 13984.63319 | P62: 11681.67303 | Q62: 12372.02592 | R62: 14012.81814 | S62: 14703.17103
C63: 0 | D63: =IF(C63<>0,LOOKUP(,-CODE(C$3:C63),C$3:C63),D62) -> 8 | E63: 8-180(750)-528 | F63: Тумба кухонная двухдверный с тандембоксом или леграбоксом, Н - 140/180 мм, полка ЛДСП | I63: 750 | J63: 720 | K63: 528 | L63: 11425.2179 | M63: 12165.30803 | N63: 13996.21835 | O63: 14736.30848 | P63: 12267.429 | Q63: 13007.51913 | R63: 14766.52405 | S63: 15506.61418
C64: 0 | D64: =IF(C64<>0,LOOKUP(,-CODE(C$3:C64),C$3:C64),D63) -> 8 | E64: 8-180(800)-528 | F64: Тумба кухонная двухдверный с тандембоксом или леграбоксом, Н - 140/180 мм, полка ЛДСП | I64: 800 | J64: 720 | K64: 528 | L64: 11954.37366 | M64: 12744.20104 | N64: 14698.1564 | O64: 15487.98377 | P64: 12853.18497 | Q64: 13643.01234 | R64: 15520.22995 | S64: 16310.05732
C65: 0 | D65: =IF(C65<>0,LOOKUP(,-CODE(C$3:C65),C$3:C65),D64) -> 8 | E65: 8-180(850)-528 | F65: Тумба кухонная двухдверный с тандембоксом или леграбоксом, Н - 140/180 мм, полка ЛДСП | I65: 850 | J65: 720 | K65: 528 | L65: 12483.52943 | M65: 13323.09404 | N65: 15400.09445 | O65: 16239.65906 | P65: 13438.94094 | Q65: 14278.50555 | R65: 16273.93586 | S65: 17113.50047
C66: 0 | D66: =IF(C66<>0,LOOKUP(,-CODE(C$3:C66),C$3:C66),D65) -> 8 | E66: 8-180(900)-528 | F66: Тумба кухонная двухдверный с тандембоксом или леграбоксом, Н - 140/180 мм, полка ЛДСП | I66: 900 | J66: 720 | K66: 528 | L66: 13012.68519 | M66: 13901.98704 | N66: 16102.0325 | O66: 16991.33435 | P66: 14024.6969 | Q66: 14913.99876 | R66: 17027.64176 | S66: 17916.94361
C67: 0 | D67: =IF(C67<>0,LOOKUP(,-CODE(C$3:C67),C$3:C67),D66) -> 8 | E67: 8-180(950)-528 | F67: Тумба кухонная двухдверный с тандембоксом или леграбоксом, Н - 140/180 мм, полка ЛДСП | I67: 950 | J67: 720 | K67: 528 | L67: 13541.84095 | M67: 14480.88004 | N67: 16803.97054 | O67: 17743.00964 | P67: 14610.45287 | Q67: 15549.49196 | R67: 17781.34767 | S67: 18720.38676
C68: 0 | D68: =IF(C68<>0,LOOKUP(,-CODE(C$3:C68),C$3:C68),D67) -> 8 | E68: 8-180(1000)-528 | F68: Тумба кухонная двухдверный с тандембоксом или леграбоксом, Н - 140/180 мм, полка ЛДСП | I68: 1000 | J68: 720 | K68: 528 | L68: 14070.99671 | M68: 15059.77304 | N68: 17505.90859 | O68: 18494.68492 | P68: 15196.20884 | Q68: 16184.98517 | R68: 18535.05357 | S68: 19523.8299
B69: 12 | C69: 9 | D69: =IF(C69<>0,LOOKUP(,-CODE(C$3:C69),C$3:C69),D68) -> 9 | E69: 9(300)-528 | F69: Тумба кухонная однодверная со стеклом, полка ЛДСП | I69: 300 | J69: 720 | K69: 528 | L69: 4103.397171 | M69: 4400.077718 | N69: 5023.490175 | O69: 5320.170721 | P69: 4405.137386 | Q69: 4701.817933 | R69: 5299.318755 | S69: 5595.999302
C70: 0 | D70: =IF(C70<>0,LOOKUP(,-CODE(C$3:C70),C$3:C70),D69) -> 9 | E70: 9(350)-528 | F70: Тумба кухонная однодверный со стеклом, полка ЛДСП | I70: 350 | J70: 720 | K70: 528 | L70: 4616.989421 | M70: 4963.616188 | N70: 5691.980237 | O70: 6038.607004 | P70: 4969.527652 | Q70: 5316.154419 | R70: 6014.244605 | S70: 6360.871372
C71: 0 | D71: =IF(C71<>0,LOOKUP(,-CODE(C$3:C71),C$3:C71),D70) -> 9 | E71: 9(400)-528 | F71: Тумба кухонная однодверный со стеклом, полка ЛДСП | I71: 400 | J71: 720 | K71: 528 | L71: 5130.581671 | M71: 5527.154658 | N71: 6360.470299 | O71: 6757.043286 | P71: 5533.917919 | Q71: 5930.490905 | R71: 6729.170455 | S71: 7125.743442
C72: 0 | D72: =IF(C72<>0,LOOKUP(,-CODE(C$3:C72),C$3:C72),D71) -> 9 | E72: 9(450)-528 | F72: Тумба кухонная однодверный со стеклом, полка ЛДСП | I72: 450 | J72: 720 | K72: 528 | L72: 5644.173922 | M72: 6090.693128 | N72: 7028.960361 | O72: 7475.479568 | P72: 6098.308185 | Q72: 6544.827391 | R72: 7444.096306 | S72: 7890.615512
C73: 0 | D73: =IF(C73<>0,LOOKUP(,-CODE(C$3:C73),C$3:C73),D72) -> 9 | E73: 9(500)-528 | F73: Тумба кухонная однодверный со стеклом, полка ЛДСП | I73: 500 | J73: 720 | K73: 528 | L73: 6157.766172 | M73: 6654.231598 | N73: 7697.450423 | O73: 8193.91585 | P73: 6662.698451 | Q73: 7159.163877 | R73: 8159.022156 | S73: 8655.487582
C74: 0 | D74: =IF(C74<>0,LOOKUP(,-CODE(C$3:C74),C$3:C74),D73) -> 9 | E74: 9(550)-528 | F74: Тумба кухонная однодверный со стеклом, полка ЛДСП | I74: 550 | J74: 720 | K74: 528 | L74: 6671.358422 | M74: 7217.770068 | N74: 8365.940485 | O74: 8912.352132 | P74: 7227.088717 | Q74: 7773.500363 | R74: 8873.948006 | S74: 9420.359652
C75: 0 | D75: =IF(C75<>0,LOOKUP(,-CODE(C$3:C75),C$3:C75),D74) -> 9 | E75: 9(600)-528 | F75: Тумба кухонная однодверный со стеклом, полка ЛДСП | I75: 600 | J75: 720 | K75: 528 | L75: 7184.950672 | M75: 7781.308538 | N75: 9034.430547 | O75: 9630.788414 | P75: 7791.478983 | Q75: 8387.836849 | R75: 9588.873856 | S75: 10185.23172
B76: 13 | C76: 10 | D76: =IF(C76<>0,LOOKUP(,-CODE(C$3:C76),C$3:C76),D75) -> 10 | E76: 10(600)-528 | F76: Тумба кухонная двухдверная со стеклом, полка ЛДСП | I76: 600 | J76: 720 | K76: 528 | L76: 7405.844932 | M76: 7999.206025 | N76: 9246.030938 | O76: 9839.392032 | P76: 8009.325362 | Q76: 8602.686455 | R76: 9797.6881 | S76: 10391.04919
C77: 0 | D77: =IF(C77<>0,LOOKUP(,-CODE(C$3:C77),C$3:C77),D76) -> 10 | E77: 10(650)-528 | F77: Тумба кухонная двухдверный со стеклом, полка ЛДСП | I77: 650 | J77: 720 | K77: 528 | L77: 7919.437182 | M77: 8562.744495 | N77: 9914.521 | O77: 10557.82831 | P77: 8573.715628 | Q77: 9217.022941 | R77: 10512.61395 | S77: 11155.92126
C78: 0 | D78: =IF(C78<>0,LOOKUP(,-CODE(C$3:C78),C$3:C78),D77) -> 10 | E78: 10(700)-528 | F78: Тумба кухонная двухдверный со стеклом, полка ЛДСП | I78: 700 | J78: 720 | K78: 528 | L78: 8433.029432 | M78: 9126.282965 | N78: 10583.01106 | O78: 11276.2646 | P78: 9138.105894 | Q78: 9831.359427 | R78: 11227.5398 | S78: 11920.79333
C79: 0 | D79: =IF(C79<>0,LOOKUP(,-CODE(C$3:C79),C$3:C79),D78) -> 10 | E79: 10(750)-528 | F79: Тумба кухонная двухдверный со стеклом, полка ЛДСП | I79: 750 | J79: 720 | K79: 528 | L79: 8946.621682 | M79: 9689.821435 | N79: 11251.50112 | O79: 11994.70088 | P79: 9702.49616 | Q79: 10445.69591 | R79: 11942.46565 | S79: 12685.6654
C80: 0 | D80: =IF(C80<>0,LOOKUP(,-CODE(C$3:C80),C$3:C80),D79) -> 10 | E80: 10(800)-528 | F80: Тумба кухонная двухдверный со стеклом, полка ЛДСП | I80: 800 | J80: 720 | K80: 528 | L80: 9460.213932 | M80: 10253.35991 | N80: 11919.99119 | O80: 12713.13716 | P80: 10266.88643 | Q80: 11060.0324 | R80: 12657.3915 | S80: 13450.53747
C81: 0 | D81: =IF(C81<>0,LOOKUP(,-CODE(C$3:C81),C$3:C81),D80) -> 10 | E81: 10(850)-528 | F81: Тумба кухонная двухдверный со стеклом, полка ЛДСП | I81: 850 | J81: 720 | K81: 528 | L81: 9973.806182 | M81: 10816.89838 | N81: 12588.48125 | O81: 13431.57344 | P81: 10831.27669 | Q81: 11674.36889 | R81: 13372.31735 | S81: 14215.40954
C82: 0 | D82: =IF(C82<>0,LOOKUP(,-CODE(C$3:C82),C$3:C82),D81) -> 10 | E82: 10(900)-528 | F82: Тумба кухонная двухдверный со стеклом, полка ЛДСП | I82: 900 | J82: 720 | K82: 528 | L82: 10487.39843 | M82: 11380.43685 | N82: 13256.97131 | O82: 14150.00972 | P82: 11395.66696 | Q82: 12288.70537 | R82: 14087.2432 | S82: 14980.28161
C83: 0 | D83: =IF(C83<>0,LOOKUP(,-CODE(C$3:C83),C$3:C83),D82) -> 10 | E83: 10(950)-528 | F83: Тумба кухонная двухдверный со стеклом, полка ЛДСП | I83: 950 | J83: 720 | K83: 528 | L83: 11000.99068 | M83: 11943.97532 | N83: 13925.46137 | O83: 14868.44601 | P83: 11960.05722 | Q83: 12903.04186 | R83: 14802.16905 | S83: 15745.15368
C84: 0 | D84: =IF(C84<>0,LOOKUP(,-CODE(C$3:C84),C$3:C84),D83) -> 10 | E84: 10(1000)-528 | F84: Тумба кухонная двухдверный со стеклом, полка ЛДСП | I84: 1000 | J84: 720 | K84: 528 | L84: 11514.58293 | M84: 12507.51379 | N84: 14593.95143 | O84: 15586.88229 | P84: 12524.44749 | Q84: 13517.37834 | R84: 15517.0949 | S84: 16510.02575
B85: 14 | C85: 11 | D85: =IF(C85<>0,LOOKUP(,-CODE(C$3:C85),C$3:C85),D84) -> 11 | E85: 11(300)-528 | F85: Тумба кухонная торцевая (скошенная) | I85: 300 | J85: 720 | K85: 528 | L85: 7480.038002 | M85: 8136.331333 | N85: 9759.936591 | O85: 10416.22992 | P85: 8226.889637 | Q85: 8883.182968 | R85: 10443.02433 | S85: 11099.31766
C86: 0 | D86: =IF(C86<>0,LOOKUP(,-CODE(C$3:C86),C$3:C86),D85) -> 11 | E86: 11(350)-528 | F86: Тумба кухонная торцевой (скошенный) | I86: 350 | J86: 720 | K86: 528 | L86: 8192.735338 | M86: 8918.953377 | N86: 10715.5455 | O86: 11441.76354 | P86: 9019.160207 | Q86: 9745.378246 | R86: 11471.41275 | S86: 12197.63079
C87: 0 | D87: =IF(C87<>0,LOOKUP(,-CODE(C$3:C87),C$3:C87),D86) -> 11 | E87: 11(400)-528 | F87: Тумба кухонная торцевой (скошенный) | I87: 400 | J87: 720 | K87: 528 | L87: 8893.042443 | M87: 9689.18519 | N87: 11658.76417 | O87: 12454.90692 | P87: 9799.040546 | Q87: 10595.18329 | R87: 12487.41094 | S87: 13283.55368
B88: 15 | C88: 12 | D88: =IF(C88<>0,LOOKUP(,-CODE(C$3:C88),C$3:C88),D87) -> 12 | E88: 12(350)-528 | F88: Тумба кухонная торцевая (радиусная) | I88: 350 | J88: 720 | K88: 528 | L88: 16645.32756 | M88: 16916.16564 | N88: 17586.19245 | O88: 17857.03053 | P88: 16953.53709 | Q88: 17224.37517 | R88: 17868.08801 | S88: 18138.92609
B89: 16 | C89: 13 | D89: =IF(C89<>0,LOOKUP(,-CODE(C$3:C89),C$3:C89),D88) -> 13 | E89: 13(300)-528 | F89: Тумба кухонная торцевая (скошенная) со стеклом, полка ЛДСП | I89: 300 | J89: 720 | K89: 528 | L89: 7431.848529 | M89: 7817.30378 | N89: 8627.257811 | O89: 9012.713061 | P89: 7823.877435 | Q89: 8209.332686 | R89: 8985.621633 | S89: 9371.076884
C90: 0 | D90: =IF(C90<>0,LOOKUP(,-CODE(C$3:C90),C$3:C90),D89) -> 13 | E90: 13(350)-528 | F90: Тумба кухонная торцевой (скошенный) со стеклом, полка ЛДСП | I90: 350 | J90: 720 | K90: 528 | L90: 8165.170054 | M90: 8620.550012 | N90: 9577.436272 | O90: 10032.81623 | P90: 8628.316182 | Q90: 9083.696141 | R90: 10000.8102 | S90: 10456.19016
C91: 0 | D91: =IF(C91<>0,LOOKUP(,-CODE(C$3:C91),C$3:C91),D90) -> 13 | E91: 13(400)-528 | F91: Тумба кухонная торцевой (скошенный) со стеклом, полка ЛДСП | I91: 400 | J91: 720 | K91: 528 | L91: 8861.101348 | M91: 9386.406014 | N91: 10490.2245 | O91: 11015.52917 | P91: 9395.364699 | Q91: 9920.669365 | R91: 10978.60853 | S91: 11503.9132
B92: 17 | C92: 14 | D92: =IF(C92<>0,LOOKUP(,-CODE(C$3:C92),C$3:C92),D91) -> 14 | E92: 14(350)-528 | F92: Тумба кухонная торцевая (радиусная) со стеклом, полка ЛДСП | I92: 350 | J92: 720 | K92: 528 | L92: 12693.03666 | M92: 12963.87474 | N92: 13633.90155 | O92: 13904.73963 | P92: 13001.24619 | Q92: 13272.08427 | R92: 13915.79711 | S92: 14186.63519
B93: 18 | C93: 15 | D93: =IF(C93<>0,LOOKUP(,-CODE(C$3:C93),C$3:C93),D92) -> 15 | E93: 15(300)-560 | F93: Тумба кухонная открытая торцевая (радиусная) | I93: 300 | J93: 720 | K93: 560 | L93: 1000.810307 | M93: 1000.810307 | N93: 1000.810307 | O93: 1000.810307 | P93: 1000.810307 | Q93: 1000.810307 | R93: 1000.810307 | S93: 1000.810307
B94: 18 | C94: 16 | D94: =IF(C94<>0,LOOKUP(,-CODE(C$3:C94),C$3:C94),D93) -> 16 | E94: 16(300)-560 | F94: Тумба кухонная открытая торцевая (скошенная) | I94: 300 | J94: 720 | K94: 560 | L94: 1000.810307 | M94: 1000.810307 | N94: 1000.810307 | O94: 1000.810307 | P94: 1000.810307 | Q94: 1000.810307 | R94: 1000.810307 | S94: 1000.810307
C95: 0 | D95: =IF(C95<>0,LOOKUP(,-CODE(C$3:C95),C$3:C95),D94) -> 16 | E95: 16(350)-560 | F95: Тумба кухонная открытая торцевая (скошенная) | I95: 350 | J95: 720 | K95: 560 | L95: 1087.704041 | M95: 1087.704041 | N95: 1087.704041 | O95: 1087.704041 | P95: 1087.704041 | Q95: 1087.704041 | R95: 1087.704041 | S95: 1087.704041
C96: 0 | D96: =IF(C96<>0,LOOKUP(,-CODE(C$3:C96),C$3:C96),D95) -> 16 | E96: 16(400)-560 | F96: Тумба кухонная открытая торцевая (скошенная) | I96: 400 | J96: 720 | K96: 560 | L96: 1174.597774 | M96: 1174.597774 | N96: 1174.597774 | O96: 1174.597774 | P96: 1174.597774 | Q96: 1174.597774 | R96: 1174.597774 | S96: 1174.597774
B97: 19 | C97: 17 | D97: =IF(C97<>0,LOOKUP(,-CODE(C$3:C97),C$3:C97),D96) -> 17 | E97: 17(300)-528 | F97: Тумба кухонная открытая | I97: 300 | J97: 720 | K97: 528 | L97: 1053.726332 | M97: 1053.726332 | N97: 1053.726332 | O97: 1053.726332 | P97: 1053.726332 | Q97: 1053.726332 | R97: 1053.726332 | S97: 1053.726332
C98: 0 | D98: =IF(C98<>0,LOOKUP(,-CODE(C$3:C98),C$3:C98),D97) -> 17 | E98: 17(350)-528 | F98: Тумба кухонная открытая | I98: 350 | J98: 720 | K98: 528 | L98: 1102.418941 | M98: 1102.418941 | N98: 1102.418941 | O98: 1102.418941 | P98: 1102.418941 | Q98: 1102.418941 | R98: 1102.418941 | S98: 1102.418941
C99: 0 | D99: =IF(C99<>0,LOOKUP(,-CODE(C$3:C99),C$3:C99),D98) -> 17 | E99: 17(400)-528 | F99: Тумба кухонная открытая | I99: 400 | J99: 720 | K99: 528 | L99: 1151.11155 | M99: 1151.11155 | N99: 1151.11155 | O99: 1151.11155 | P99: 1151.11155 | Q99: 1151.11155 | R99: 1151.11155 | S99: 1151.11155
C100: 0 | D100: =IF(C100<>0,LOOKUP(,-CODE(C$3:C100),C$3:C100),D99) -> 17 | E100: 17(450)-528 | F100: Тумба кухонная открытая | I100: 450 | J100: 720 | K100: 528 | L100: 1199.804158 | M100: 1199.804158 | N100: 1199.804158 | O100: 1199.804158 | P100: 1199.804158 | Q100: 1199.804158 | R100: 1199.804158 | S100: 1199.804158
C101: 0 | D101: =IF(C101<>0,LOOKUP(,-CODE(C$3:C101),C$3:C101),D100) -> 17 | E101: 17(500)-528 | F101: Тумба кухонная открытая | I101: 500 | J101: 720 | K101: 528 | L101: 1248.496767 | M101: 1248.496767 | N101: 1248.496767 | O101: 1248.496767 | P101: 1248.496767 | Q101: 1248.496767 | R101: 1248.496767 | S101: 1248.496767
C102: 0 | D102: =IF(C102<>0,LOOKUP(,-CODE(C$3:C102),C$3:C102),D101) -> 17 | E102: 17(550)-528 | F102: Тумба кухонная открытая | I102: 550 | J102: 720 | K102: 528 | L102: 1297.189376 | M102: 1297.189376 | N102: 1297.189376 | O102: 1297.189376 | P102: 1297.189376 | Q102: 1297.189376 | R102: 1297.189376 | S102: 1297.189376
C103: 0 | D103: =IF(C103<>0,LOOKUP(,-CODE(C$3:C103),C$3:C103),D102) -> 17 | E103: 17(600)-528 | F103: Тумба кухонная открытая | I103: 600 | J103: 720 | K103: 528 | L103: 1345.881984 | M103: 1345.881984 | N103: 1345.881984 | O103: 1345.881984 | P103: 1345.881984 | Q103: 1345.881984 | R103: 1345.881984 | S103: 1345.881984
C104: 0 | D104: =IF(C104<>0,LOOKUP(,-CODE(C$3:C104),C$3:C104),D103) -> 17 | E104: 17(650)-528 | F104: Тумба кухонная открытая | I104: 650 | J104: 720 | K104: 528 | L104: 1394.574593 | M104: 1394.574593 | N104: 1394.574593 | O104: 1394.574593 | P104: 1394.574593 | Q104: 1394.574593 | R104: 1394.574593 | S104: 1394.574593
C105: 0 | D105: =IF(C105<>0,LOOKUP(,-CODE(C$3:C105),C$3:C105),D104) -> 17 | E105: 17(700)-528 | F105: Тумба кухонная открытая | I105: 700 | J105: 720 | K105: 528 | L105: 1443.267202 | M105: 1443.267202 | N105: 1443.267202 | O105: 1443.267202 | P105: 1443.267202 | Q105: 1443.267202 | R105: 1443.267202 | S105: 1443.267202
C106: 0 | D106: =IF(C106<>0,LOOKUP(,-CODE(C$3:C106),C$3:C106),D105) -> 17 | E106: 17(750)-528 | F106: Тумба кухонная открытая | I106: 750 | J106: 720 | K106: 528 | L106: 1491.95981 | M106: 1491.95981 | N106: 1491.95981 | O106: 1491.95981 | P106: 1491.95981 | Q106: 1491.95981 | R106: 1491.95981 | S106: 1491.95981
C107: 0 | D107: =IF(C107<>0,LOOKUP(,-CODE(C$3:C107),C$3:C107),D106) -> 17 | E107: 17(800)-528 | F107: Тумба кухонная открытая | I107: 800 | J107: 720 | K107: 528 | L107: 1540.652419 | M107: 1540.652419 | N107: 1540.652419 | O107: 1540.652419 | P107: 1540.652419 | Q107: 1540.652419 | R107: 1540.652419 | S107: 1540.652419
C108: 0 | D108: =IF(C108<>0,LOOKUP(,-CODE(C$3:C108),C$3:C108),D107) -> 17 | E108: 17(850)-528 | F108: Тумба кухонная открытая | I108: 850 | J108: 720 | K108: 528 | L108: 1589.345028 | M108: 1589.345028 | N108: 1589.345028 | O108: 1589.345028 | P108: 1589.345028 | Q108: 1589.345028 | R108: 1589.345028 | S108: 1589.345028
C109: 0 | D109: =IF(C109<>0,LOOKUP(,-CODE(C$3:C109),C$3:C109),D108) -> 17 | E109: 17(900)-528 | F109: Тумба кухонная открытая | I109: 900 | J109: 720 | K109: 528 | L109: 1638.037637 | M109: 1638.037637 | N109: 1638.037637 | O109: 1638.037637 | P109: 1638.037637 | Q109: 1638.037637 | R109: 1638.037637 | S109: 1638.037637
B110: 20 | C110: 18 | D110: =IF(C110<>0,LOOKUP(,-CODE(C$3:C110),C$3:C110),D109) -> 18 | E110: 18(300)-528 | F110: Тумба кухонная с метабоксом и нишей | I110: 300 | J110: 720 | K110: 528 | L110: 3315.772346 | M110: 3463.491949 | N110: 3828.935741 | O110: 3976.655344 | P110: 3483.874963 | Q110: 3631.594566 | R110: 3982.686273 | S110: 4130.405876
C111: 0 | D111: =IF(C111<>0,LOOKUP(,-CODE(C$3:C111),C$3:C111),D110) -> 18 | E111: 18(350)-528 | F111: Тумба кухонная с метабоксом и нишей | I111: 350 | J111: 720 | K111: 528 | L111: 3625.07751 | M111: 3797.665733 | N111: 4224.63205 | O111: 4397.220273 | P111: 3821.480232 | Q111: 3994.068455 | R111: 4404.26651 | S111: 4576.854733
C112: 0 | D112: =IF(C112<>0,LOOKUP(,-CODE(C$3:C112),C$3:C112),D111) -> 18 | E112: 18(400)-528 | F112: Тумба кухонная с метабоксом и нишей | I112: 400 | J112: 720 | K112: 528 | L112: 3934.382675 | M112: 4131.839518 | N112: 4620.328358 | O112: 4817.785201 | P112: 4159.085501 | Q112: 4356.542344 | R112: 4825.846747 | S112: 5023.30359
C113: 0 | D113: =IF(C113<>0,LOOKUP(,-CODE(C$3:C113),C$3:C113),D112) -> 18 | E113: 18(450)-528 | F113: Тумба кухонная с метабоксом и нишей | I113: 450 | J113: 720 | K113: 528 | L113: 4243.68784 | M113: 4466.013303 | N113: 5016.024667 | O113: 5238.35013 | P113: 4496.69077 | Q113: 4719.016232 | R113: 5247.426984 | S113: 5469.752446
C114: 0 | D114: =IF(C114<>0,LOOKUP(,-CODE(C$3:C114),C$3:C114),D113) -> 18 | E114: 18(500)-528 | F114: Тумба кухонная с метабоксом и нишей | I114: 500 | J114: 720 | K114: 528 | L114: 4552.993005 | M114: 4800.187087 | N114: 5411.720976 | O114: 5658.915059 | P114: 4834.296038 | Q114: 5081.490121 | R114: 5669.00722 | S114: 5916.201303
C115: 0 | D115: =IF(C115<>0,LOOKUP(,-CODE(C$3:C115),C$3:C115),D114) -> 18 | E115: 18(550)-528 | F115: Тумба кухонная с метабоксом и нишей | I115: 550 | J115: 720 | K115: 528 | L115: 4862.298169 | M115: 5134.360872 | N115: 5807.417285 | O115: 6079.479987 | P115: 5171.901307 | Q115: 5443.96401 | R115: 6090.587457 | S115: 6362.65016
C116: 0 | D116: =IF(C116<>0,LOOKUP(,-CODE(C$3:C116),C$3:C116),D115) -> 18 | E116: 18(600)-528 | F116: Тумба кухонная с метабоксом и нишей | I116: 600 | J116: 720 | K116: 528 | L116: 5171.603334 | M116: 5468.534657 | N116: 6203.113593 | O116: 6500.044916 | P116: 5509.506576 | Q116: 5806.437898 | R116: 6512.167694 | S116: 6809.099016
C117: 0 | D117: =IF(C117<>0,LOOKUP(,-CODE(C$3:C117),C$3:C117),D116) -> 18 | E117: 18(650)-528 | F117: Тумба кухонная с метабоксом и нишей | I117: 650 | J117: 720 | K117: 528 | L117: 5480.908499 | M117: 5802.708441 | N117: 6598.809902 | O117: 6920.609845 | P117: 5847.111844 | Q117: 6168.911787 | R117: 6933.74793 | S117: 7255.547873
C118: 0 | D118: =IF(C118<>0,LOOKUP(,-CODE(C$3:C118),C$3:C118),D117) -> 18 | E118: 18(700)-528 | F118: Тумба кухонная с метабоксом и нишей | I118: 700 | J118: 720 | K118: 528 | L118: 5790.213663 | M118: 6136.882226 | N118: 6994.506211 | O118: 7341.174773 | P118: 6184.717113 | Q118: 6531.385676 | R118: 7355.328167 | S118: 7701.99673
C119: 0 | D119: =IF(C119<>0,LOOKUP(,-CODE(C$3:C119),C$3:C119),D118) -> 18 | E119: 18(750)-528 | F119: Тумба кухонная с метабоксом и нишей | I119: 750 | J119: 720 | K119: 528 | L119: 6099.518828 | M119: 6471.056011 | N119: 7390.202519 | O119: 7761.739702 | P119: 6522.322382 | Q119: 6893.859565 | R119: 7776.908404 | S119: 8148.445586
C120: 0 | D120: =IF(C120<>0,LOOKUP(,-CODE(C$3:C120),C$3:C120),D119) -> 18 | E120: 18(800)-528 | F120: Тумба кухонная с метабоксом и нишей | I120: 800 | J120: 720 | K120: 528 | L120: 6408.823993 | M120: 6805.229795 | N120: 7785.898828 | O120: 8182.304631 | P120: 6859.92765 | Q120: 7256.333453 | R120: 8198.48864 | S120: 8594.894443
C121: 0 | D121: =IF(C121<>0,LOOKUP(,-CODE(C$3:C121),C$3:C121),D120) -> 18 | E121: 18(850)-528 | F121: Тумба кухонная с метабоксом и нишей | I121: 850 | J121: 720 | K121: 528 | L121: 6718.129157 | M121: 7139.40358 | N121: 8181.595137 | O121: 8602.86956 | P121: 7197.532919 | Q121: 7618.807342 | R121: 8620.068877 | S121: 9041.3433
C122: 0 | D122: =IF(C122<>0,LOOKUP(,-CODE(C$3:C122),C$3:C122),D121) -> 18 | E122: 18(900)-528 | F122: Тумба кухонная с метабоксом и нишей | I122: 900 | J122: 720 | K122: 528 | L122: 7027.434322 | M122: 7473.577365 | N122: 8577.291445 | O122: 9023.434488 | P122: 7535.138188 | Q122: 7981.281231 | R122: 9041.649114 | S122: 9487.792157
C123: 19 | D123: =IF(C123<>0,LOOKUP(,-CODE(C$3:C123),C$3:C123),D122) -> 19 | E123: 19(300)-528 | F123: Тумба кухонная с леграбоксом и нишей | I123: 300 | J123: 720 | K123: 528 | L123: 5044.113182 | M123: 5191.832785 | N123: 5557.276577 | O123: 5704.99618 | P123: 5212.2158 | Q123: 5359.935403 | R123: 5711.02711 | S123: 5858.746712
C124: 0 | D124: =IF(C124<>0,LOOKUP(,-CODE(C$3:C124),C$3:C124),D123) -> 19 | E124: 19(350)-528 | F124: Тумба кухонная с тандембоксом или леграбоксом и нишей | I124: 350 | J124: 720 | K124: 528 | L124: 5352.648347 | M124: 5525.236569 | N124: 5952.202886 | O124: 6124.791109 | P124: 5549.051068 | Q124: 5721.639291 | R124: 6131.837346 | S124: 6304.425569
C125: 0 | D125: =IF(C125<>0,LOOKUP(,-CODE(C$3:C125),C$3:C125),D124) -> 19 | E125: 19(400)-528 | F125: Тумба кухонная с тандембоксом или леграбоксом и нишей | I125: 400 | J125: 720 | K125: 528 | L125: 5661.183511 | M125: 5858.640354 | N125: 6347.129195 | O125: 6544.586038 | P125: 5885.886337 | Q125: 6083.34318 | R125: 6552.647583 | S125: 6750.104426
C126: 0 | D126: =IF(C126<>0,LOOKUP(,-CODE(C$3:C126),C$3:C126),D125) -> 19 | E126: 19(450)-528 | F126: Тумба кухонная с тандембоксом или леграбоксом и нишей | I126: 450 | J126: 720 | K126: 528 | L126: 5969.718676 | M126: 6192.044139 | N126: 6742.055503 | O126: 6964.380966 | P126: 6222.721606 | Q126: 6445.047069 | R126: 6973.45782 | S126: 7195.783283
C127: 0 | D127: =IF(C127<>0,LOOKUP(,-CODE(C$3:C127),C$3:C127),D126) -> 19 | E127: 19(500)-528 | F127: Тумба кухонная с тандембоксом или леграбоксом и нишей | I127: 500 | J127: 720 | K127: 528 | L127: 6278.253841 | M127: 6525.447924 | N127: 7136.981812 | O127: 7384.175895 | P127: 6559.556875 | Q127: 6806.750957 | R127: 7394.268056 | S127: 7641.462139
C128: 0 | D128: =IF(C128<>0,LOOKUP(,-CODE(C$3:C128),C$3:C128),D127) -> 19 | E128: 19(550)-528 | F128: Тумба кухонная с тандембоксом или леграбоксом и нишей | I128: 550 | J128: 720 | K128: 528 | L128: 6586.789005 | M128: 6858.851708 | N128: 7531.908121 | O128: 7803.970824 | P128: 6896.392143 | Q128: 7168.454846 | R128: 7815.078293 | S128: 8087.140996
C129: 0 | D129: =IF(C129<>0,LOOKUP(,-CODE(C$3:C129),C$3:C129),D128) -> 19 | E129: 19(600)-528 | F129: Тумба кухонная с тандембоксом или леграбоксом и нишей | I129: 600 | J129: 720 | K129: 528 | L129: 6895.32417 | M129: 7192.255493 | N129: 7926.83443 | O129: 8223.765752 | P129: 7233.227412 | Q129: 7530.158735 | R129: 8235.88853 | S129: 8532.819853
C130: 0 | D130: =IF(C130<>0,LOOKUP(,-CODE(C$3:C130),C$3:C130),D129) -> 19 | E130: 19(650)-528 | F130: Тумба кухонная с тандембоксом или леграбоксом и нишей | I130: 650 | J130: 720 | K130: 528 | L130: 7203.859335 | M130: 7525.659278 | N130: 8321.760738 | O130: 8643.560681 | P130: 7570.062681 | Q130: 7891.862623 | R130: 8656.698767 | S130: 8978.498709
C131: 0 | D131: =IF(C131<>0,LOOKUP(,-CODE(C$3:C131),C$3:C131),D130) -> 19 | E131: 19(700)-528 | F131: Тумба кухонная с тандембоксом или леграбоксом и нишей | I131: 700 | J131: 720 | K131: 528 | L131: 7512.3945 | M131: 7859.063062 | N131: 8716.687047 | O131: 9063.35561 | P131: 7906.897949 | Q131: 8253.566512 | R131: 9077.509003 | S131: 9424.177566
C132: 0 | D132: =IF(C132<>0,LOOKUP(,-CODE(C$3:C132),C$3:C132),D131) -> 19 | E132: 19(750)-528 | F132: Тумба кухонная с тандембоксом или леграбоксом и нишей | I132: 750 | J132: 720 | K132: 528 | L132: 7820.929664 | M132: 8192.466847 | N132: 9111.613356 | O132: 9483.150538 | P132: 8243.733218 | Q132: 8615.270401 | R132: 9498.31924 | S132: 9869.856423
C133: 0 | D133: =IF(C133<>0,LOOKUP(,-CODE(C$3:C133),C$3:C133),D132) -> 19 | E133: 19(800)-528 | F133: Тумба кухонная с тандембоксом или леграбоксом и нишей | I133: 800 | J133: 720 | K133: 528 | L133: 8129.464829 | M133: 8525.870632 | N133: 9506.539664 | O133: 9902.945467 | P133: 8580.568487 | Q133: 8976.97429 | R133: 9919.129477 | S133: 10315.53528
C134: 0 | D134: =IF(C134<>0,LOOKUP(,-CODE(C$3:C134),C$3:C134),D133) -> 19 | E134: 19(850)-528 | F134: Тумба кухонная с тандембоксом или леграбоксом и нишей | I134: 850 | J134: 720 | K134: 528 | L134: 8437.999994 | M134: 8859.274416 | N134: 9901.465973 | O134: 10322.7404 | P134: 8917.403755 | Q134: 9338.678178 | R134: 10339.93971 | S134: 10761.21414
C135: 0 | D135: =IF(C135<>0,LOOKUP(,-CODE(C$3:C135),C$3:C135),D134) -> 19 | E135: 19(900)-528 | F135: Тумба кухонная с тандембоксом или леграбоксом и нишей | I135: 900 | J135: 720 | K135: 528 | L135: 8746.535158 | M135: 9192.678201 | N135: 10296.39228 | O135: 10742.53532 | P135: 9254.239024 | Q135: 9700.382067 | R135: 10760.74995 | S135: 11206.89299
B136: 22 | C136: 20 | D136: =IF(C136<>0,LOOKUP(,-CODE(C$3:C136),C$3:C136),D135) -> 20 | E136: 20(300)-528 | F136: Тумба кухонная с двумя метабоксами | I136: 300 | J136: 720 | K136: 528 | L136: 5420.129528 | M136: 5715.568733 | N136: 6446.456318 | O136: 6741.895524 | P136: 5756.334763 | Q136: 6051.773969 | R136: 6753.957383 | S136: 7049.396589
C137: 0 | D137: =IF(C137<>0,LOOKUP(,-CODE(C$3:C137),C$3:C137),D136) -> 20 | E137: 20(350)-528 | F137: Тумба кухонная с двумя метабоксами | I137: 350 | J137: 720 | K137: 528 | L137: 5962.944782 | M137: 6308.121227 | N137: 7162.05386 | O137: 7507.230306 | P137: 6355.750225 | Q137: 6700.926671 | R137: 7521.322781 | S137: 7866.499227
C138: 0 | D138: =IF(C138<>0,LOOKUP(,-CODE(C$3:C138),C$3:C138),D137) -> 20 | E138: 20(400)-528 | F138: Тумба кухонная с двумя метабоксами | I138: 400 | J138: 720 | K138: 528 | L138: 6505.760036 | M138: 6900.673721 | N138: 7877.651402 | O138: 8272.565088 | P138: 6955.165687 | Q138: 7350.079373 | R138: 8288.688179 | S138: 8683.601865
C139: 0 | D139: =IF(C139<>0,LOOKUP(,-CODE(C$3:C139),C$3:C139),D138) -> 20 | E139: 20(450)-528 | F139: Тумба кухонная с двумя метабоксами | I139: 450 | J139: 720 | K139: 528 | L139: 7048.57529 | M139: 7493.226215 | N139: 8593.248944 | O139: 9037.89987 | P139: 7554.581149 | Q139: 7999.232075 | R139: 9056.053577 | S139: 9500.704503
C140: 0 | D140: =IF(C140<>0,LOOKUP(,-CODE(C$3:C140),C$3:C140),D139) -> 20 | E140: 20(500)-528 | F140: Тумба кухонная с двумя метабоксами | I140: 500 | J140: 720 | K140: 528 | L140: 7591.390544 | M140: 8085.778709 | N140: 9308.846486 | O140: 9803.234652 | P140: 8153.996611 | Q140: 8648.384777 | R140: 9823.418975 | S140: 10317.80714
C141: 0 | D141: =IF(C141<>0,LOOKUP(,-CODE(C$3:C141),C$3:C141),D140) -> 20 | E141: 20(550)-528 | F141: Тумба кухонная с двумя метабоксами | I141: 550 | J141: 720 | K141: 528 | L141: 8134.205798 | M141: 8678.331203 | N141: 10024.44403 | O141: 10568.56943 | P141: 8753.412073 | Q141: 9297.537479 | R141: 10590.78437 | S141: 11134.90978
C142: 0 | D142: =IF(C142<>0,LOOKUP(,-CODE(C$3:C142),C$3:C142),D141) -> 20 | E142: 20(600)-528 | F142: Тумба кухонная с двумя метабоксами | I142: 600 | J142: 720 | K142: 528 | L142: 8677.021052 | M142: 9270.883697 | N142: 10740.04157 | O142: 11333.90422 | P142: 9352.827535 | Q142: 9946.690181 | R142: 11358.14977 | S142: 11952.01242
C143: 0 | D143: =IF(C143<>0,LOOKUP(,-CODE(C$3:C143),C$3:C143),D142) -> 20 | E143: 20(650)-528 | F143: Тумба кухонная с двумя метабоксами | I143: 650 | J143: 720 | K143: 528 | L143: 9219.836306 | M143: 9863.436191 | N143: 11455.63911 | O143: 12099.239 | P143: 9952.242997 | Q143: 10595.84288 | R143: 12125.51517 | S143: 12769.11505
C144: 0 | D144: =IF(C144<>0,LOOKUP(,-CODE(C$3:C144),C$3:C144),D143) -> 20 | E144: 20(700)-528 | F144: Тумба кухонная с двумя метабоксами | I144: 700 | J144: 720 | K144: 528 | L144: 9762.65156 | M144: 10455.98869 | N144: 12171.23665 | O144: 12864.57378 | P144: 10551.65846 | Q144: 11244.99558 | R144: 12892.88057 | S144: 13586.21769
C145: 0 | D145: =IF(C145<>0,LOOKUP(,-CODE(C$3:C145),C$3:C145),D144) -> 20 | E145: 20(750)-528 | F145: Тумба кухонная с двумя метабоксами | I145: 750 | J145: 720 | K145: 528 | L145: 10305.46681 | M145: 11048.54118 | N145: 12886.8342 | O145: 13629.90856 | P145: 11151.07392 | Q145: 11894.14829 | R145: 13660.24597 | S145: 14403.32033
C146: 0 | D146: =IF(C146<>0,LOOKUP(,-CODE(C$3:C146),C$3:C146),D145) -> 20 | E146: 20(800)-528 | F146: Тумба кухонная с двумя метабоксами | I146: 800 | J146: 720 | K146: 528 | L146: 10848.28207 | M146: 11641.09367 | N146: 13602.43174 | O146: 14395.24334 | P146: 11750.48938 | Q146: 12543.30099 | R146: 14427.61136 | S146: 15220.42297
C147: 0 | D147: =IF(C147<>0,LOOKUP(,-CODE(C$3:C147),C$3:C147),D146) -> 20 | E147: 20(850)-528 | F147: Тумба кухонная с двумя метабоксами | I147: 850 | J147: 720 | K147: 528 | L147: 11391.09732 | M147: 12233.64617 | N147: 14318.02928 | O147: 15160.57813 | P147: 12349.90485 | Q147: 13192.45369 | R147: 15194.97676 | S147: 16037.52561
C148: 0 | D148: =IF(C148<>0,LOOKUP(,-CODE(C$3:C148),C$3:C148),D147) -> 20 | E148: 20(900)-528 | F148: Тумба кухонная с двумя метабоксами | I148: 900 | J148: 720 | K148: 528 | L148: 11933.91258 | M148: 12826.19866 | N148: 15033.62682 | O148: 15925.91291 | P148: 12949.32031 | Q148: 13841.60639 | R148: 15962.34216 | S148: 16854.62824
B149: 22В | C149: 21 | D149: =IF(C149<>0,LOOKUP(,-CODE(C$3:C149),C$3:C149),D148) -> 21 | E149: 21(450)-528 | F149: Тумба кухонная с двумя метабоксами под варочную поверхность | I149: 450 | J149: 720 | K149: 528 | L149: 7030.529637 | M149: 7475.180563 | N149: 8575.203292 | O149: 9019.854218 | P149: 7536.535497 | Q149: 7981.186423 | R149: 9038.007925 | S149: 9482.65885
C150: 0 | D150: =IF(C150<>0,LOOKUP(,-CODE(C$3:C150),C$3:C150),D149) -> 21 | E150: 21(600)-528 | F150: Тумба кухонная с двумя метабоксами под варочную поверхность | I150: 600 | J150: 720 | K150: 528 | L150: 8648.70366 | M150: 9242.566306 | N150: 10711.72418 | O150: 11305.58682 | P150: 9324.510144 | Q150: 9918.37279 | R150: 11329.83238 | S150: 11923.69503
C151: 0 | D151: =IF(C151<>0,LOOKUP(,-CODE(C$3:C151),C$3:C151),D150) -> 21 | E151: 21(900)-528 | F151: Тумба кухонная с двумя метабоксами под варочную поверхность | I151: 900 | J151: 720 | K151: 528 | L151: 11885.05171 | M151: 12777.33779 | N151: 14984.76595 | O151: 15877.05204 | P151: 12900.45944 | Q151: 13792.74552 | R151: 15913.48129 | S151: 16805.76738
B152: 23 | C152: 22 | D152: =IF(C152<>0,LOOKUP(,-CODE(C$3:C152),C$3:C152),D151) -> 22 | E152: 22(300)-528 | F152: Тумба кухонная с двумя леграбоксами | I152: 300 | J152: 720 | K152: 528 | L152: 8876.8112 | M152: 9172.250406 | N152: 9903.137991 | O152: 10198.5772 | P152: 9213.016436 | Q152: 9508.455641 | R152: 10210.63906 | S152: 10506.07826
C153: 0 | D153: =IF(C153<>0,LOOKUP(,-CODE(C$3:C153),C$3:C153),D152) -> 22 | E153: 22(350)-528 | F153: Тумба кухонная с двумя тандембоксами или леграбоксами | I153: 350 | J153: 720 | K153: 528 | L153: 9418.086454 | M153: 9763.2629 | N153: 10617.19553 | O153: 10962.37198 | P153: 9810.891898 | Q153: 10156.06834 | R153: 10976.46445 | S153: 11321.6409
C154: 0 | D154: =IF(C154<>0,LOOKUP(,-CODE(C$3:C154),C$3:C154),D153) -> 22 | E154: 22(400)-528 | F154: Тумба кухонная с двумя тандембоксами или леграбоксами | I154: 400 | J154: 720 | K154: 528 | L154: 9959.361708 | M154: 10354.27539 | N154: 11331.25307 | O154: 11726.16676 | P154: 10408.76736 | Q154: 10803.68105 | R154: 11742.28985 | S154: 12137.20354
C155: 0 | D155: =IF(C155<>0,LOOKUP(,-CODE(C$3:C155),C$3:C155),D154) -> 22 | E155: 22(450)-528 | F155: Тумба кухонная с двумя тандембоксами или леграбоксами | I155: 450 | J155: 720 | K155: 528 | L155: 10500.63696 | M155: 10945.28789 | N155: 12045.31062 | O155: 12489.96154 | P155: 11006.64282 | Q155: 11451.29375 | R155: 12508.11525 | S155: 12952.76618
C156: 0 | D156: =IF(C156<>0,LOOKUP(,-CODE(C$3:C156),C$3:C156),D155) -> 22 | E156: 22(500)-528 | F156: Тумба кухонная с двумя тандембоксами или леграбоксами | I156: 500 | J156: 720 | K156: 528 | L156: 11041.91222 | M156: 11536.30038 | N156: 12759.36816 | O156: 13253.75632 | P156: 11604.51828 | Q156: 12098.90645 | R156: 13273.94065 | S156: 13768.32881
C157: 0 | D157: =IF(C157<>0,LOOKUP(,-CODE(C$3:C157),C$3:C157),D156) -> 22 | E157: 22(550)-528 | F157: Тумба кухонная с двумя тандембоксами или леграбоксами | I157: 550 | J157: 720 | K157: 528 | L157: 11583.18747 | M157: 12127.31288 | N157: 13473.4257 | O157: 14017.55111 | P157: 12202.39375 | Q157: 12746.51915 | R157: 14039.76605 | S157: 14583.89145
C158: 0 | D158: =IF(C158<>0,LOOKUP(,-CODE(C$3:C158),C$3:C158),D157) -> 22 | E158: 22(600)-528 | F158: Тумба кухонная с двумя тандембоксами или леграбоксами | I158: 600 | J158: 720 | K158: 528 | L158: 12124.46272 | M158: 12718.32537 | N158: 14187.48324 | O158: 14781.34589 | P158: 12800.26921 | Q158: 13394.13185 | R158: 14805.59144 | S158: 15399.45409
C159: 0 | D159: =IF(C159<>0,LOOKUP(,-CODE(C$3:C159),C$3:C159),D158) -> 22 | E159: 22(650)-528 | F159: Тумба кухонная с двумя тандембоксами или леграбоксами | I159: 650 | J159: 720 | K159: 528 | L159: 12665.73798 | M159: 13309.33786 | N159: 14901.54079 | O159: 15545.14067 | P159: 13398.14467 | Q159: 14041.74456 | R159: 15571.41684 | S159: 16215.01673
C160: 0 | D160: =IF(C160<>0,LOOKUP(,-CODE(C$3:C160),C$3:C160),D159) -> 22 | E160: 22(700)-528 | F160: Тумба кухонная с двумя тандембоксами или леграбоксами | I160: 700 | J160: 720 | K160: 528 | L160: 13207.01323 | M160: 13900.35036 | N160: 15615.59833 | O160: 16308.93545 | P160: 13996.02013 | Q160: 14689.35726 | R160: 16337.24224 | S160: 17030.57937
C161: 0 | D161: =IF(C161<>0,LOOKUP(,-CODE(C$3:C161),C$3:C161),D160) -> 22 | E161: 22(750)-528 | F161: Тумба кухонная с двумя тандембоксами или леграбоксами | I161: 750 | J161: 720 | K161: 528 | L161: 13748.28849 | M161: 14491.36285 | N161: 16329.65587 | O161: 17072.73023 | P161: 14593.89559 | Q161: 15336.96996 | R161: 17103.06764 | S161: 17846.142
C162: 0 | D162: =IF(C162<>0,LOOKUP(,-CODE(C$3:C162),C$3:C162),D161) -> 22 | E162: 22(800)-528 | F162: Тумба кухонная с двумя тандембоксами или леграбоксами | I162: 800 | J162: 720 | K162: 528 | L162: 14289.56374 | M162: 15082.37535 | N162: 17043.71341 | O162: 17836.52502 | P162: 15191.77106 | Q162: 15984.58266 | R162: 17868.89304 | S162: 18661.70464
C163: 0 | D163: =IF(C163<>0,LOOKUP(,-CODE(C$3:C163),C$3:C163),D162) -> 22 | E163: 22(850)-528 | F163: Тумба кухонная с двумя тандембоксами или леграбоксами | I163: 850 | J163: 720 | K163: 528 | L163: 14830.83899 | M163: 15673.38784 | N163: 17757.77095 | O163: 18600.3198 | P163: 15789.64652 | Q163: 16632.19536 | R163: 18634.71843 | S163: 19477.26728
C164: 0 | D164: =IF(C164<>0,LOOKUP(,-CODE(C$3:C164),C$3:C164),D163) -> 22 | E164: 22(900)-528 | F164: Тумба кухонная с двумя тандембоксами или леграбоксами | I164: 900 | J164: 720 | K164: 528 | L164: 15372.11425 | M164: 16264.40033 | N164: 18471.8285 | O164: 19364.11458 | P164: 16387.52198 | Q164: 17279.80807 | R164: 19400.54383 | S164: 20292.82992
B165: 23В | C165: 23 | D165: =IF(C165<>0,LOOKUP(,-CODE(C$3:C165),C$3:C165),D164) -> 23 | E165: 23(450)-528 | F165: Тумба кухонная с двумя леграбоксами под варочную поверхность | I165: 450 | J165: 720 | K165: 528 | L165: 10482.59131 | M165: 10927.24224 | N165: 12027.26496 | O165: 12471.91589 | P165: 10988.59717 | Q165: 11433.2481 | R165: 12490.0696 | S165: 12934.72052
C166: 0 | D166: =IF(C166<>0,LOOKUP(,-CODE(C$3:C166),C$3:C166),D165) -> 23 | E166: 23(600)-528 | F166: Тумба кухонная с двумя тандембоксами или леграбоксами под варочную поверхность | I166: 600 | J166: 720 | K166: 528 | L166: 12096.14533 | M166: 12690.00798 | N166: 14159.16585 | O166: 14753.0285 | P166: 12771.95182 | Q166: 13365.81446 | R166: 14777.27405 | S166: 15371.1367
C167: 0 | D167: =IF(C167<>0,LOOKUP(,-CODE(C$3:C167),C$3:C167),D166) -> 23 | E167: 23(900)-528 | F167: Тумба кухонная с двумя тандембоксами или леграбоксами под варочную поверхность | I167: 900 | J167: 720 | K167: 528 | L167: 15323.25338 | M167: 16215.53946 | N167: 18422.96763 | O167: 19315.25371 | P167: 16338.66111 | Q167: 17230.9472 | R167: 19351.68296 | S167: 20243.96905
B168: 26 | C168: 24 | D168: =IF(C168<>0,LOOKUP(,-CODE(C$3:C168),C$3:C168),D167) -> 24 | E168: 24(300)-528 | F168: Тумба кухонная метабоксом(верх) и леграбоксом | I168: 300 | J168: 720 | K168: 528 | L168: 7148.470364 | M168: 7443.909569 | N168: 8174.797155 | O168: 8470.23636 | P168: 7484.675599 | Q168: 7780.114805 | R168: 8482.298219 | S168: 8777.737425
C169: 0 | D169: =IF(C169<>0,LOOKUP(,-CODE(C$3:C169),C$3:C169),D168) -> 24 | E169: 24(350)-528 | F169: Тумба кухонная метабоксом(верх) и тандембоксом или леграбоксом | I169: 350 | J169: 720 | K169: 528 | L169: 7690.515618 | M169: 8035.692063 | N169: 8889.624697 | O169: 9234.801142 | P169: 8083.321061 | Q169: 8428.497507 | R169: 9248.893617 | S169: 9594.070063
C170: 0 | D170: =IF(C170<>0,LOOKUP(,-CODE(C$3:C170),C$3:C170),D169) -> 24 | E170: 24(400)-528 | F170: Тумба кухонная метабоксом(верх) и тандембоксом или леграбоксом | I170: 400 | J170: 720 | K170: 528 | L170: 8232.560872 | M170: 8627.474558 | N170: 9604.452239 | O170: 9999.365924 | P170: 8681.966523 | Q170: 9076.880209 | R170: 10015.48902 | S170: 10410.4027
C171: 0 | D171: =IF(C171<>0,LOOKUP(,-CODE(C$3:C171),C$3:C171),D170) -> 24 | E171: 24(450)-528 | F171: Тумба кухонная метабоксом(верх) и тандембоксом или леграбоксом | I171: 450 | J171: 720 | K171: 528 | L171: 8774.606126 | M171: 9219.257052 | N171: 10319.27978 | O171: 10763.93071 | P171: 9280.611985 | Q171: 9725.262911 | R171: 10782.08441 | S171: 11226.73534
C172: 0 | D172: =IF(C172<>0,LOOKUP(,-CODE(C$3:C172),C$3:C172),D171) -> 24 | E172: 24(500)-528 | F172: Тумба кухонная метабоксом(верх) и тандембоксом или леграбоксом | I172: 500 | J172: 720 | K172: 528 | L172: 9316.65138 | M172: 9811.039546 | N172: 11034.10732 | O172: 11528.49549 | P172: 9879.257447 | Q172: 10373.64561 | R172: 11548.67981 | S172: 12043.06798
C173: 0 | D173: =IF(C173<>0,LOOKUP(,-CODE(C$3:C173),C$3:C173),D172) -> 24 | E173: 24(550)-528 | F173: Тумба кухонная метабоксом(верх) и тандембоксом или леграбоксом | I173: 550 | J173: 720 | K173: 528 | L173: 9858.696634 | M173: 10402.82204 | N173: 11748.93486 | O173: 12293.06027 | P173: 10477.90291 | Q173: 11022.02832 | R173: 12315.27521 | S173: 12859.40061
C174: 0 | D174: =IF(C174<>0,LOOKUP(,-CODE(C$3:C174),C$3:C174),D173) -> 24 | E174: 24(600)-528 | F174: Тумба кухонная метабоксом(верх) и тандембоксом или леграбоксом | I174: 600 | J174: 720 | K174: 528 | L174: 10400.74189 | M174: 10994.60453 | N174: 12463.76241 | O174: 13057.62505 | P174: 11076.54837 | Q174: 11670.41102 | R174: 13081.87061 | S174: 13675.73325
C175: 0 | D175: =IF(C175<>0,LOOKUP(,-CODE(C$3:C175),C$3:C175),D174) -> 24 | E175: 24(650)-528 | F175: Тумба кухонная метабоксом(верх) и тандембоксом или леграбоксом | I175: 650 | J175: 720 | K175: 528 | L175: 10942.78714 | M175: 11586.38703 | N175: 13178.58995 | O175: 13822.18983 | P175: 11675.19383 | Q175: 12318.79372 | R175: 13848.46601 | S175: 14492.06589
C176: 0 | D176: =IF(C176<>0,LOOKUP(,-CODE(C$3:C176),C$3:C176),D175) -> 24 | E176: 24(700)-528 | F176: Тумба кухонная метабоксом(верх) и тандембоксом или леграбоксом | I176: 700 | J176: 720 | K176: 528 | L176: 11484.8324 | M176: 12178.16952 | N176: 13893.41749 | O176: 14586.75462 | P176: 12273.8393 | Q176: 12967.17642 | R176: 14615.0614 | S176: 15308.39853
C177: 0 | D177: =IF(C177<>0,LOOKUP(,-CODE(C$3:C177),C$3:C177),D176) -> 24 | E177: 24(750)-528 | F177: Тумба кухонная метабоксом(верх) и тандембоксом или леграбоксом | I177: 750 | J177: 720 | K177: 528 | L177: 12026.87765 | M177: 12769.95202 | N177: 14608.24503 | O177: 15351.3194 | P177: 12872.48476 | Q177: 13615.55912 | R177: 15381.6568 | S177: 16124.73117
C178: 0 | D178: =IF(C178<>0,LOOKUP(,-CODE(C$3:C178),C$3:C178),D177) -> 24 | E178: 24(800)-528 | F178: Тумба кухонная метабоксом(верх) и тандембоксом или леграбоксом | I178: 800 | J178: 720 | K178: 528 | L178: 12568.9229 | M178: 13361.73451 | N178: 15323.07257 | O178: 16115.88418 | P178: 13471.13022 | Q178: 14263.94183 | R178: 16148.2522 | S178: 16941.06381
C179: 0 | D179: =IF(C179<>0,LOOKUP(,-CODE(C$3:C179),C$3:C179),D178) -> 24 | E179: 24(850)-528 | F179: Тумба кухонная метабоксом(верх) и тандембоксом или леграбоксом | I179: 850 | J179: 720 | K179: 528 | L179: 13110.96816 | M179: 13953.517 | N179: 16037.90012 | O179: 16880.44896 | P179: 14069.77568 | Q179: 14912.32453 | R179: 16914.8476 | S179: 17757.39644
C180: 0 | D180: =IF(C180<>0,LOOKUP(,-CODE(C$3:C180),C$3:C180),D179) -> 24 | E180: 24(900)-528 | F180: Тумба кухонная метабоксом(верх) и тандембоксом или леграбоксом | I180: 900 | J180: 720 | K180: 528 | L180: 13653.01341 | M180: 14545.2995 | N180: 16752.72766 | O180: 17645.01374 | P180: 14668.42114 | Q180: 15560.70723 | R180: 17681.443 | S180: 18573.72908
C181: 25 | D181: =IF(C181<>0,LOOKUP(,-CODE(C$3:C181),C$3:C181),D180) -> 25 | E181: 25(300)-528 | F181: Тумба кухонная леграбоксом(верх) и метабоксом | I181: 300 | J181: 720 | K181: 528 | L181: 7148.470364 | M181: 7443.909569 | N181: 8174.797155 | O181: 8470.23636 | P181: 7484.675599 | Q181: 7780.114805 | R181: 8482.298219 | S181: 8777.737425
C182: 0 | D182: =IF(C182<>0,LOOKUP(,-CODE(C$3:C182),C$3:C182),D181) -> 25 | E182: 25(350)-528 | F182: Тумба кухонная тандембоксом или леграбоксом(верх) и метабоксом | I182: 350 | J182: 720 | K182: 528 | L182: 7690.515618 | M182: 8035.692063 | N182: 8889.624697 | O182: 9234.801142 | P182: 8083.321061 | Q182: 8428.497507 | R182: 9248.893617 | S182: 9594.070063
C183: 0 | D183: =IF(C183<>0,LOOKUP(,-CODE(C$3:C183),C$3:C183),D182) -> 25 | E183: 25(400)-528 | F183: Тумба кухонная тандембоксом или леграбоксом(верх) и метабоксом | I183: 400 | J183: 720 | K183: 528 | L183: 8232.560872 | M183: 8627.474558 | N183: 9604.452239 | O183: 9999.365924 | P183: 8681.966523 | Q183: 9076.880209 | R183: 10015.48902 | S183: 10410.4027
C184: 0 | D184: =IF(C184<>0,LOOKUP(,-CODE(C$3:C184),C$3:C184),D183) -> 25 | E184: 25(450)-528 | F184: Тумба кухонная тандембоксом или леграбоксом(верх) и метабоксом | I184: 450 | J184: 720 | K184: 528 | L184: 8774.606126 | M184: 9219.257052 | N184: 10319.27978 | O184: 10763.93071 | P184: 9280.611985 | Q184: 9725.262911 | R184: 10782.08441 | S184: 11226.73534
C185: 0 | D185: =IF(C185<>0,LOOKUP(,-CODE(C$3:C185),C$3:C185),D184) -> 25 | E185: 25(500)-528 | F185: Тумба кухонная тандембоксом или леграбоксом(верх) и метабоксом | I185: 500 | J185: 720 | K185: 528 | L185: 9316.65138 | M185: 9811.039546 | N185: 11034.10732 | O185: 11528.49549 | P185: 9879.257447 | Q185: 10373.64561 | R185: 11548.67981 | S185: 12043.06798
C186: 0 | D186: =IF(C186<>0,LOOKUP(,-CODE(C$3:C186),C$3:C186),D185) -> 25 | E186: 25(550)-528 | F186: Тумба кухонная тандембоксом или леграбоксом(верх) и метабоксом | I186: 550 | J186: 720 | K186: 528 | L186: 9858.696634 | M186: 10402.82204 | N186: 11748.93486 | O186: 12293.06027 | P186: 10477.90291 | Q186: 11022.02832 | R186: 12315.27521 | S186: 12859.40061
C187: 0 | D187: =IF(C187<>0,LOOKUP(,-CODE(C$3:C187),C$3:C187),D186) -> 25 | E187: 25(600)-528 | F187: Тумба кухонная тандембоксом или леграбоксом(верх) и метабоксом | I187: 600 | J187: 720 | K187: 528 | L187: 10400.74189 | M187: 10994.60453 | N187: 12463.76241 | O187: 13057.62505 | P187: 11076.54837 | Q187: 11670.41102 | R187: 13081.87061 | S187: 13675.73325
C188: 0 | D188: =IF(C188<>0,LOOKUP(,-CODE(C$3:C188),C$3:C188),D187) -> 25 | E188: 25(650)-528 | F188: Тумба кухонная тандембоксом или леграбоксом(верх) и метабоксом | I188: 650 | J188: 720 | K188: 528 | L188: 10942.78714 | M188: 11586.38703 | N188: 13178.58995 | O188: 13822.18983 | P188: 11675.19383 | Q188: 12318.79372 | R188: 13848.46601 | S188: 14492.06589
C189: 0 | D189: =IF(C189<>0,LOOKUP(,-CODE(C$3:C189),C$3:C189),D188) -> 25 | E189: 25(700)-528 | F189: Тумба кухонная тандембоксом или леграбоксом(верх) и метабоксом | I189: 700 | J189: 720 | K189: 528 | L189: 11484.8324 | M189: 12178.16952 | N189: 13893.41749 | O189: 14586.75462 | P189: 12273.8393 | Q189: 12967.17642 | R189: 14615.0614 | S189: 15308.39853
C190: 0 | D190: =IF(C190<>0,LOOKUP(,-CODE(C$3:C190),C$3:C190),D189) -> 25 | E190: 25(750)-528 | F190: Тумба кухонная тандембоксом или леграбоксом(верх) и метабоксом | I190: 750 | J190: 720 | K190: 528 | L190: 12026.87765 | M190: 12769.95202 | N190: 14608.24503 | O190: 15351.3194 | P190: 12872.48476 | Q190: 13615.55912 | R190: 15381.6568 | S190: 16124.73117
C191: 0 | D191: =IF(C191<>0,LOOKUP(,-CODE(C$3:C191),C$3:C191),D190) -> 25 | E191: 25(800)-528 | F191: Тумба кухонная тандембоксом или леграбоксом(верх) и метабоксом | I191: 800 | J191: 720 | K191: 528 | L191: 12568.9229 | M191: 13361.73451 | N191: 15323.07257 | O191: 16115.88418 | P191: 13471.13022 | Q191: 14263.94183 | R191: 16148.2522 | S191: 16941.06381
C192: 0 | D192: =IF(C192<>0,LOOKUP(,-CODE(C$3:C192),C$3:C192),D191) -> 25 | E192: 25(850)-528 | F192: Тумба кухонная тандембоксом или леграбоксом(верх) и метабоксом | I192: 850 | J192: 720 | K192: 528 | L192: 13110.96816 | M192: 13953.517 | N192: 16037.90012 | O192: 16880.44896 | P192: 14069.77568 | Q192: 14912.32453 | R192: 16914.8476 | S192: 17757.39644
C193: 0 | D193: =IF(C193<>0,LOOKUP(,-CODE(C$3:C193),C$3:C193),D192) -> 25 | E193: 25(900)-528 | F193: Тумба кухонная тандембоксом или леграбоксом(верх) и метабоксом | I193: 900 | J193: 720 | K193: 528 | L193: 13653.01341 | M193: 14545.2995 | N193: 16752.72766 | O193: 17645.01374 | P193: 14668.42114 | Q193: 15560.70723 | R193: 17681.443 | S193: 18573.72908
B194: 30/1 | C194: 26 | D194: =IF(C194<>0,LOOKUP(,-CODE(C$3:C194),C$3:C194),D193) -> 26 | E194: 26-180(300)-528 | F194: Тумба кухонная с тремя метабоксами, Н - 180 мм | I194: 300 | J194: 720 | K194: 528 | L194: 6599.48332 | M194: 6893.681185 | N194: 7621.497814 | O194: 7915.695678 | P194: 6934.275929 | Q194: 7228.473793 | R194: 7927.706857 | S194: 8221.904721
C195: 0 | D195: =IF(C195<>0,LOOKUP(,-CODE(C$3:C195),C$3:C195),D194) -> 26 | E195: 26-180(350)-528 | F195: Тумба кухонная с тремя метабоксами, Н - 140/180 мм | I195: 350 | J195: 720 | K195: 528 | L195: 7158.165077 | M195: 7501.891201 | N195: 8352.235882 | O195: 8695.962007 | P195: 7549.320078 | Q195: 7893.046202 | R195: 8709.99527 | S195: 9053.721394
C196: 0 | D196: =IF(C196<>0,LOOKUP(,-CODE(C$3:C196),C$3:C196),D195) -> 26 | E196: 26-180(400)-528 | F196: Тумба кухонная с тремя метабоксами, Н - 140/180 мм | I196: 400 | J196: 720 | K196: 528 | L196: 7718.146834 | M196: 8111.401218 | N196: 9084.273951 | O196: 9477.528335 | P196: 8165.664226 | Q196: 8558.918611 | R196: 9493.583682 | S196: 9886.838067
C197: 0 | D197: =IF(C197<>0,LOOKUP(,-CODE(C$3:C197),C$3:C197),D196) -> 26 | E197: 26-180(450)-528 | F197: Тумба кухонная с тремя метабоксами, Н - 140/180 мм | I197: 450 | J197: 720 | K197: 528 | L197: 8278.12859 | M197: 8720.911235 | N197: 9816.31202 | O197: 10259.09466 | P197: 8782.008375 | Q197: 9224.791019 | R197: 10277.1721 | S197: 10719.95474
C198: 0 | D198: =IF(C198<>0,LOOKUP(,-CODE(C$3:C198),C$3:C198),D197) -> 26 | E198: 26-180(500)-528 | F198: Тумба кухонная с тремя метабоксами, Н - 140/180 мм | I198: 500 | J198: 720 | K198: 528 | L198: 8838.110347 | M198: 9330.421252 | N198: 10548.35009 | O198: 11040.66099 | P198: 9398.352524 | Q198: 9890.663428 | R198: 11060.76051 | S198: 11553.07141
C199: 0 | D199: =IF(C199<>0,LOOKUP(,-CODE(C$3:C199),C$3:C199),D198) -> 26 | E199: 26-180(550)-528 | F199: Тумба кухонная с тремя метабоксами, Н - 140/180 мм | I199: 550 | J199: 720 | K199: 528 | L199: 9398.092104 | M199: 9939.931268 | N199: 11280.38816 | O199: 11822.22732 | P199: 10014.69667 | Q199: 10556.53584 | R199: 11844.34892 | S199: 12386.18808
C200: 0 | D200: =IF(C200<>0,LOOKUP(,-CODE(C$3:C200),C$3:C200),D199) -> 26 | E200: 26-180(600)-528 | F200: Тумба кухонная с тремя метабоксами, Н - 140/180 мм | I200: 600 | J200: 720 | K200: 528 | L200: 9958.073861 | M200: 10549.44128 | N200: 12012.42623 | O200: 12603.79365 | P200: 10631.04082 | Q200: 11222.40825 | R200: 12627.93733 | S200: 13219.30476
C201: 0 | D201: =IF(C201<>0,LOOKUP(,-CODE(C$3:C201),C$3:C201),D200) -> 26 | E201: 26-180(650)-528 | F201: Тумба кухонная с тремя метабоксами, Н - 140/180 мм | I201: 650 | J201: 720 | K201: 528 | L201: 10518.05562 | M201: 11158.9513 | N201: 12744.46429 | O201: 13385.35998 | P201: 11247.38497 | Q201: 11888.28065 | R201: 13411.52575 | S201: 14052.42143
... 3856 more rows

Sheet Процент
A1: 0

Sheet Расчет
B1: Бланк заказа от 26.01.2017
B9: 40 | Y9: Самовывоз
B10: Карта заказа № | D10: Лига | I10: Каркас | P10: Козырек/менсола | Y10: Доставка до клиента
Y11: Доставка до ТК
B12: Менеджер | I12: Фасад | K12: Валенсия20 БУК без патины | P12: Балюстрада
B14: Компания | I14: Рисунок фасада | K14: Прямая 20 | P14: Цоколь, ножки | R14: 100м простой
B16: Заказчик | I16: Стекло | K16: А6 кристалл на простом стекле протяжка золото | P16: Мойка
B18: Дата запуска | I18: Столешница | P18: Сушилка | R18: на 800 хром
B20: Срок изгот. (дни) | I20: Отбортов. профиль | P20: Ручки | R20: 96 база
B22: Способ доставки | I22: Стеновая панель | P22: Планки стол., стен. панели
B24: Сумма доставки | I24: Багет верхний | P24: Прочее
B26: Адрес доставки | I26: Багет нижний
B28: 1.Стандартные модули
B29: № | C29: Примечание | G29: Старый № поз. | H29: № позиции | I29: Тип | K29: Ширина | L29: Высота | M29: Глубина | N29: Кол-во | O29: Коллекция | S29: Цена | T29: Сумма
B30: 1 | G30: =IF(I30="","",V(OFFSET(Прайс2!$E$3:$E$4091,MATCH(Расчет!I30,Прайс2!$E$3:$E$4091,0)-1,-3,1,1))) -> 108 | H30: 107 | I30: 107(720)-700 | K30: =IF(I30="","",VLOOKUP(I30,Прайс2!$E$3:$K$4057,5,FALSE)) -> 700 | L30: =IF(I30="","",VLOOKUP(I30,Прайс2!$E$3:$K$4057,6,FALSE)) -> 720 | M30: =IF(I30="","",VLOOKUP(I30,Прайс2!$E$3:$K$4057,7,FALSE)) -> 315 | N30: 1 | O30: Валенсия 20 КЛАССИКА бук | S30: =IF(I30="","",IF(O30="","",INDEX(Прайс2!$L$3:$S$4067,MATCH(I30,Прайс2!$E$3:$E$4067,0),MATCH(O30,Прайс2!$L$2:$S$2,0))*IF(Процент!$A$1=0,1,Процент!$A$1+1))) -> 8090.93204 | T30: =IF(N30="","",IF(S30="","",N30*S30)) -> 8090.93204
B31: 2 | G31: =IF(I31="","",V(OFFSET(Прайс2!$E$3:$E$4091,MATCH(Расчет!I31,Прайс2!$E$3:$E$4091,0)-1,-3,1,1))) -> 126 | H31: 127 | I31: 127(720)-700 | K31: 690 | L31: =IF(I31="","",VLOOKUP(I31,Прайс2!$E$3:$K$4057,6,FALSE)) -> 720 | M31: =IF(I31="","",VLOOKUP(I31,Прайс2!$E$3:$K$4057,7,FALSE)) -> 370 | N31: 1 | O31: Валенсия 20 КЛАССИКА бук | S31: =IF(I31="","",IF(O31="","",INDEX(Прайс2!$L$3:$S$4067,MATCH(I31,Прайс2!$E$3:$E$4067,0),MATCH(O31,Прайс2!$L$2:$S$2,0))*IF(Процент!$A$1=0,1,Процент!$A$1+1))) -> 5708.05908 | T31: 5708.05908
B32: 3 | C32: авентос | G32: =IF(I32="","",V(OFFSET(Прайс2!$E$3:$E$4091,MATCH(Расчет!I32,Прайс2!$E$3:$E$4091,0)-1,-3,1,1))) -> 158 | H32: 157 | I32: 157(720)-800 | K32: =IF(I32="","",VLOOKUP(I32,Прайс2!$E$3:$K$4057,5,FALSE)) -> 800 | L32: =IF(I32="","",VLOOKUP(I32,Прайс2!$E$3:$K$4057,6,FALSE)) -> 720 | M32: =IF(I32="","",VLOOKUP(I32,Прайс2!$E$3:$K$4057,7,FALSE)) -> 315 | N32: 1 | O32: Валенсия 20 КЛАССИКА бук | S32: =IF(I32="","",IF(O32="","",INDEX(Прайс2!$L$3:$S$4067,MATCH(I32,Прайс2!$E$3:$E$4067,0),MATCH(O32,Прайс2!$L$2:$S$2,0))*IF(Процент!$A$1=0,1,Процент!$A$1+1))) -> 16216.02912 | T32: 16216.02912
B33: 4 | G33: =IF(I33="","",V(OFFSET(Прайс2!$E$3:$E$4091,MATCH(Расчет!I33,Прайс2!$E$3:$E$4091,0)-1,-3,1,1))) -> 103 | H33: 100 | I33: 100(720)-400 | K33: 375 | L33: =IF(I33="","",VLOOKUP(I33,Прайс2!$E$3:$K$4057,6,FALSE)) -> 720 | M33: =IF(I33="","",VLOOKUP(I33,Прайс2!$E$3:$K$4057,7,FALSE)) -> 315 | N33: 1 | O33: Валенсия 20 КЛАССИКА бук | S33: =IF(I33="","",IF(O33="","",INDEX(Прайс2!$L$3:$S$4067,MATCH(I33,Прайс2!$E$3:$E$4067,0),MATCH(O33,Прайс2!$L$2:$S$2,0))*IF(Процент!$A$1=0,1,Процент!$A$1+1))) -> 5038.773452 | T33: 5038.773452
B34: 5 | G34: =IF(I34="","",V(OFFSET(Прайс2!$E$3:$E$4091,MATCH(Расчет!I34,Прайс2!$E$3:$E$4091,0)-1,-3,1,1))) -> 129 | H34: 128 | I34: 128(360)-800 | K34: 780 | L34: =IF(I34="","",VLOOKUP(I34,Прайс2!$E$3:$K$4057,6,FALSE)) -> 360 | M34: =IF(I34="","",VLOOKUP(I34,Прайс2!$E$3:$K$4057,7,FALSE)) -> 315 | N34: 1 | O34: Валенсия 20 КЛАССИКА бук | S34: =IF(I34="","",IF(O34="","",INDEX(Прайс2!$L$3:$S$4067,MATCH(I34,Прайс2!$E$3:$E$4067,0),MATCH(O34,Прайс2!$L$2:$S$2,0))*IF(Процент!$A$1=0,1,Процент!$A$1+1))) -> 5198.961812 | T34: 5198.961812
B35: 6 | G35: =IF(I35="","",V(OFFSET(Прайс2!$E$3:$E$4091,MATCH(Расчет!I35,Прайс2!$E$3:$E$4091,0)-1,-3,1,1))) -> 30/1 | H35: 26 | I35: 26-180(850)-528 | K35: 820 | L35: =IF(I35="","",VLOOKUP(I35,Прайс2!$E$3:$K$4057,6,FALSE)) -> 720 | M35: =IF(I35="","",VLOOKUP(I35,Прайс2!$E$3:$K$4057,7,FALSE)) -> 528 | N35: 1 | O35: Валенсия 20 КЛАССИКА бук | S35: =IF(I35="","",IF(O35="","",INDEX(Прайс2!$L$3:$S$4067,MATCH(I35,Прайс2!$E$3:$E$4067,0),MATCH(O35,Прайс2!$L$2:$S$2,0))*IF(Процент!$A$1=0,1,Процент!$A$1+1))) -> 12757.98264 | T35: 12757.98264
B36: 7 | C36: мойка | G36: =IF(I36="","",V(OFFSET(Прайс2!$E$3:$E$4091,MATCH(Расчет!I36,Прайс2!$E$3:$E$4091,0)-1,-3,1,1))) -> 81 | H36: 59 | I36: 59(1050-100)-528 | K36: =IF(I36="","",VLOOKUP(I36,Прайс2!$E$3:$K$4057,5,FALSE)) -> 1050 | L36: =IF(I36="","",VLOOKUP(I36,Прайс2!$E$3:$K$4057,6,FALSE)) -> 720 | M36: =IF(I36="","",VLOOKUP(I36,Прайс2!$E$3:$K$4057,7,FALSE)) -> 528 | N36: 1 | O36: Валенсия 20 КЛАССИКА бук | S36: =IF(I36="","",IF(O36="","",INDEX(Прайс2!$L$3:$S$4067,MATCH(I36,Прайс2!$E$3:$E$4067,0),MATCH(O36,Прайс2!$L$2:$S$2,0))*IF(Процент!$A$1=0,1,Процент!$A$1+1))) -> 7403.807111 | T36: 7403.807111
B37: 8 | G37: =IF(I37="","",V(OFFSET(Прайс2!$E$3:$E$4091,MATCH(Расчет!I37,Прайс2!$E$3:$E$4091,0)-1,-3,1,1))) -> 6 | H37: 4 | I37: 4(900)-528 | K37: =IF(I37="","",VLOOKUP(I37,Прайс2!$E$3:$K$4057,5,FALSE)) -> 900 | L37: =IF(I37="","",VLOOKUP(I37,Прайс2!$E$3:$K$4057,6,FALSE)) -> 720 | M37: =IF(I37="","",VLOOKUP(I37,Прайс2!$E$3:$K$4057,7,FALSE)) -> 528 | N37: 1 | O37: Валенсия 20 КЛАССИКА бук | S37: =IF(I37="","",IF(O37="","",INDEX(Прайс2!$L$3:$S$4067,MATCH(I37,Прайс2!$E$3:$E$4067,0),MATCH(O37,Прайс2!$L$2:$S$2,0))*IF(Процент!$A$1=0,1,Процент!$A$1+1))) -> 10575.91761 | T37: 10575.91761
B38: 9 | C38: м/б | G38: =IF(I38="","",V(OFFSET(Прайс2!$E$3:$E$4091,MATCH(Расчет!I38,Прайс2!$E$3:$E$4091,0)-1,-3,1,1))) -> 165 | H38: 65 | I38: 65-120(600)-560 | K38: =IF(I38="","",VLOOKUP(I38,Прайс2!$E$3:$K$4057,5,FALSE)) -> 600 | L38: =IF(I38="","",VLOOKUP(I38,Прайс2!$E$3:$K$4057,6,FALSE)) -> 720 | M38: =IF(I38="","",VLOOKUP(I38,Прайс2!$E$3:$K$4057,7,FALSE)) -> 560 | N38: 1 | O38: Валенсия 20 КЛАССИКА бук | S38: =IF(I38="","",IF(O38="","",INDEX(Прайс2!$L$3:$S$4067,MATCH(I38,Прайс2!$E$3:$E$4067,0),MATCH(O38,Прайс2!$L$2:$S$2,0))*IF(Процент!$A$1=0,1,Процент!$A$1+1))) -> 3594.321037 | T38: 3594.321037
B39: 10 | G39: =IF(I39="","",V(OFFSET(Прайс2!$E$3:$E$4091,MATCH(Расчет!I39,Прайс2!$E$3:$E$4091,0)-1,-3,1,1))) -> 1 | H39: 1 | I39: 1(400)-528 | K39: =IF(I39="","",VLOOKUP(I39,Прайс2!$E$3:$K$4057,5,FALSE)) -> 400 | L39: =IF(I39="","",VLOOKUP(I39,Прайс2!$E$3:$K$4057,6,FALSE)) -> 720 | M39: =IF(I39="","",VLOOKUP(I39,Прайс2!$E$3:$K$4057,7,FALSE)) -> 528 | N39: 1 | O39: Валенсия 20 КЛАССИКА бук | S39: =IF(I39="","",IF(O39="","",INDEX(Прайс2!$L$3:$S$4067,MATCH(I39,Прайс2!$E$3:$E$4067,0),MATCH(O39,Прайс2!$L$2:$S$2,0))*IF(Процент!$A$1=0,1,Процент!$A$1+1))) -> 5180.644255 | T39: 5180.644255
B40: 11 | G40: =IF(I40="","",V(OFFSET(Прайс2!$E$3:$E$4091,MATCH(Расчет!I40,Прайс2!$E$3:$E$4091,0)-1,-3,1,1))) ->  | H40: 1 | S40: =IF(I40="","",IF(O40="","",INDEX(Прайс2!$L$3:$S$4067,MATCH(I40,Прайс2!$E$3:$E$4067,0),MATCH(O40,Прайс2!$L$2:$S$2,0))*IF(Процент!$A$1=0,1,Процент!$A$1+1))) -> 
B41: 12 | C41: нижний фасад высотой 720 | G41: =IF(I41="","",V(OFFSET(Прайс2!$E$3:$E$4091,MATCH(Расчет!I41,Прайс2!$E$3:$E$4091,0)-1,-3,1,1))) -> 0 | H41: 218 | I41: 218(2280)-600 | K41: =IF(I41="","",VLOOKUP(I41,Прайс2!$E$3:$K$4057,5,FALSE)) -> 600 | L41: =IF(I41="","",VLOOKUP(I41,Прайс2!$E$3:$K$4057,6,FALSE)) -> 2280 | M41: 350 | N41: 2 | O41: Валенсия 20 КЛАССИКА бук | S41: =IF(I41="","",IF(O41="","",INDEX(Прайс2!$L$3:$S$4067,MATCH(I41,Прайс2!$E$3:$E$4067,0),MATCH(O41,Прайс2!$L$2:$S$2,0))*IF(Процент!$A$1=0,1,Процент!$A$1+1))) -> 22509.95352 | T41: 45019.90704
B42: 13 | G42: =IF(I42="","",V(OFFSET(Прайс2!$E$3:$E$4091,MATCH(Расчет!I42,Прайс2!$E$3:$E$4091,0)-1,-3,1,1))) ->  | K42: =IF(I42="","",VLOOKUP(I42,Прайс2!$E$3:$K$4057,5,FALSE)) ->  | L42: =IF(I42="","",VLOOKUP(I42,Прайс2!$E$3:$K$4057,6,FALSE)) ->  | M42: =IF(I42="","",VLOOKUP(I42,Прайс2!$E$3:$K$4057,7,FALSE)) ->  | O42: Валенсия 20 КЛАССИКА бук | S42: =IF(I42="","",IF(O42="","",INDEX(Прайс2!$L$3:$S$4067,MATCH(I42,Прайс2!$E$3:$E$4067,0),MATCH(O42,Прайс2!$L$2:$S$2,0))*IF(Процент!$A$1=0,1,Процент!$A$1+1))) -> 
B43: 14 | G43: =IF(I43="","",V(OFFSET(Прайс2!$E$3:$E$4091,MATCH(Расчет!I43,Прайс2!$E$3:$E$4091,0)-1,-3,1,1))) ->  | K43: =IF(I43="","",VLOOKUP(I43,Прайс2!$E$3:$K$4057,5,FALSE)) ->  | L43: =IF(I43="","",VLOOKUP(I43,Прайс2!$E$3:$K$4057,6,FALSE)) ->  | M43: =IF(I43="","",VLOOKUP(I43,Прайс2!$E$3:$K$4057,7,FALSE)) ->  | S43: =IF(I43="","",IF(O43="","",INDEX(Прайс2!$L$3:$S$4067,MATCH(I43,Прайс2!$E$3:$E$4067,0),MATCH(O43,Прайс2!$L$2:$S$2,0))*IF(Процент!$A$1=0,1,Процент!$A$1+1))) -> 
B44: 15 | G44: =IF(I44="","",V(OFFSET(Прайс2!$E$3:$E$4091,MATCH(Расчет!I44,Прайс2!$E$3:$E$4091,0)-1,-3,1,1))) ->  | K44: =IF(I44="","",VLOOKUP(I44,Прайс2!$E$3:$K$4057,5,FALSE)) ->  | L44: =IF(I44="","",VLOOKUP(I44,Прайс2!$E$3:$K$4057,6,FALSE)) ->  | M44: =IF(I44="","",VLOOKUP(I44,Прайс2!$E$3:$K$4057,7,FALSE)) ->  | S44: =IF(I44="","",IF(O44="","",INDEX(Прайс2!$L$3:$S$4067,MATCH(I44,Прайс2!$E$3:$E$4067,0),MATCH(O44,Прайс2!$L$2:$S$2,0))*IF(Процент!$A$1=0,1,Процент!$A$1+1))) -> 
B45: 16 | G45: =IF(I45="","",V(OFFSET(Прайс2!$E$3:$E$4091,MATCH(Расчет!I45,Прайс2!$E$3:$E$4091,0)-1,-3,1,1))) ->  | K45: =IF(I45="","",VLOOKUP(I45,Прайс2!$E$3:$K$4057,5,FALSE)) ->  | L45: =IF(I45="","",VLOOKUP(I45,Прайс2!$E$3:$K$4057,6,FALSE)) ->  | M45: =IF(I45="","",VLOOKUP(I45,Прайс2!$E$3:$K$4057,7,FALSE)) ->  | S45: =IF(I45="","",IF(O45="","",INDEX(Прайс2!$L$3:$S$4067,MATCH(I45,Прайс2!$E$3:$E$4067,0),MATCH(O45,Прайс2!$L$2:$S$2,0))*IF(Процент!$A$1=0,1,Процент!$A$1+1))) -> 
B46: 17 | G46: =IF(I46="","",V(OFFSET(Прайс2!$E$3:$E$4091,MATCH(Расчет!I46,Прайс2!$E$3:$E$4091,0)-1,-3,1,1))) ->  | K46: =IF(I46="","",VLOOKUP(I46,Прайс2!$E$3:$K$4057,5,FALSE)) ->  | L46: =IF(I46="","",VLOOKUP(I46,Прайс2!$E$3:$K$4057,6,FALSE)) ->  | M46: =IF(I46="","",VLOOKUP(I46,Прайс2!$E$3:$K$4057,7,FALSE)) ->  | S46: =IF(I46="","",IF(O46="","",INDEX(Прайс2!$L$3:$S$4067,MATCH(I46,Прайс2!$E$3:$E$4067,0),MATCH(O46,Прайс2!$L$2:$S$2,0))*IF(Процент!$A$1=0,1,Процент!$A$1+1))) -> 
B47: 18 | G47: =IF(I47="","",V(OFFSET(Прайс2!$E$3:$E$4091,MATCH(Расчет!I47,Прайс2!$E$3:$E$4091,0)-1,-3,1,1))) ->  | K47: =IF(I47="","",VLOOKUP(I47,Прайс2!$E$3:$K$4057,5,FALSE)) ->  | L47: =IF(I47="","",VLOOKUP(I47,Прайс2!$E$3:$K$4057,6,FALSE)) ->  | M47: =IF(I47="","",VLOOKUP(I47,Прайс2!$E$3:$K$4057,7,FALSE)) ->  | S47: =IF(I47="","",IF(O47="","",INDEX(Прайс2!$L$3:$S$4067,MATCH(I47,Прайс2!$E$3:$E$4067,0),MATCH(O47,Прайс2!$L$2:$S$2,0))*IF(Процент!$A$1=0,1,Процент!$A$1+1))) -> 
B48: 19 | G48: =IF(I48="","",V(OFFSET(Прайс2!$E$3:$E$4091,MATCH(Расчет!I48,Прайс2!$E$3:$E$4091,0)-1,-3,1,1))) ->  | K48: =IF(I48="","",VLOOKUP(I48,Прайс2!$E$3:$K$4057,5,FALSE)) ->  | L48: =IF(I48="","",VLOOKUP(I48,Прайс2!$E$3:$K$4057,6,FALSE)) ->  | M48: =IF(I48="","",VLOOKUP(I48,Прайс2!$E$3:$K$4057,7,FALSE)) ->  | S48: =IF(I48="","",IF(O48="","",INDEX(Прайс2!$L$3:$S$4067,MATCH(I48,Прайс2!$E$3:$E$4067,0),MATCH(O48,Прайс2!$L$2:$S$2,0))*IF(Процент!$A$1=0,1,Процент!$A$1+1))) -> 
B49: 20 | G49: =IF(I49="","",V(OFFSET(Прайс2!$E$3:$E$4091,MATCH(Расчет!I49,Прайс2!$E$3:$E$4091,0)-1,-3,1,1))) ->  | K49: =IF(I49="","",VLOOKUP(I49,Прайс2!$E$3:$K$4057,5,FALSE)) ->  | L49: =IF(I49="","",VLOOKUP(I49,Прайс2!$E$3:$K$4057,6,FALSE)) ->  | M49: =IF(I49="","",VLOOKUP(I49,Прайс2!$E$3:$K$4057,7,FALSE)) ->  | S49: =IF(I49="","",IF(O49="","",INDEX(Прайс2!$L$3:$S$4067,MATCH(I49,Прайс2!$E$3:$E$4067,0),MATCH(O49,Прайс2!$L$2:$S$2,0))*IF(Процент!$A$1=0,1,Процент!$A$1+1))) -> 
B50: 21 | G50: =IF(I50="","",V(OFFSET(Прайс2!$E$3:$E$4091,MATCH(Расчет!I50,Прайс2!$E$3:$E$4091,0)-1,-3,1,1))) ->  | K50: =IF(I50="","",VLOOKUP(I50,Прайс2!$E$3:$K$4057,5,FALSE)) ->  | L50: =IF(I50="","",VLOOKUP(I50,Прайс2!$E$3:$K$4057,6,FALSE)) ->  | M50: =IF(I50="","",VLOOKUP(I50,Прайс2!$E$3:$K$4057,7,FALSE)) ->  | S50: =IF(I50="","",IF(O50="","",INDEX(Прайс2!$L$3:$S$4067,MATCH(I50,Прайс2!$E$3:$E$4067,0),MATCH(O50,Прайс2!$L$2:$S$2,0))*IF(Процент!$A$1=0,1,Процент!$A$1+1))) -> 
B51: 22 | G51: =IF(I51="","",V(OFFSET(Прайс2!$E$3:$E$4091,MATCH(Расчет!I51,Прайс2!$E$3:$E$4091,0)-1,-3,1,1))) ->  | K51: =IF(I51="","",VLOOKUP(I51,Прайс2!$E$3:$K$4057,5,FALSE)) ->  | L51: =IF(I51="","",VLOOKUP(I51,Прайс2!$E$3:$K$4057,6,FALSE)) ->  | M51: =IF(I51="","",VLOOKUP(I51,Прайс2!$E$3:$K$4057,7,FALSE)) ->  | S51: =IF(I51="","",IF(O51="","",INDEX(Прайс2!$L$3:$S$4067,MATCH(I51,Прайс2!$E$3:$E$4067,0),MATCH(O51,Прайс2!$L$2:$S$2,0))*IF(Процент!$A$1=0,1,Процент!$A$1+1))) -> 
O52: Итого стандартные модули | S52: =SUM(T30:T51) -> 124785.3352
O53: Скидка | T53: =S52*S53 -> 0
O54: Итого с учетом скидки | S54: =S52-T53 -> 124785.3352
B56: 2.Нестандартные модули
B57: № | C57: Примечание | G57: Старый № поз. | H57: Номер позиции | I57: Тип | K57: Ширина | L57: Высота | M57: Глубина | N57: Кол-во | O57: Коллекция | S57: Цена | T57: Сумма
B58: 1 | T58: =IF(S58="","",S58*N58) -> 
B59: 2 | T59: =IF(S59="","",S59*N59) -> 
B60: 3
B61: 4
B62: 5
B63: 6
B64: 7
B65: 8
B66: 9
B67: 10
O68: Итого нестандартные модули | S68: =SUM(T58:T67) -> 0
O69: Скидка | S69: =S53 -> 0 | T69: =S68*S69 -> 0
O70: Итого с учетом скидки | S70: =S68-T69 -> 0
B72: 3.Дополнительная комплектация
B73: № | C73: Наименование | G73: Кол-во | H73: Цена | J73: Сумма | M73: № | N73: Наименование | R73: Кол-во | S73: Цена | T73: Сумма
B74: 1 | C74: пересчет стекла | G74: 2 | H74: 1542 | J74: =IF(H74="","",H74*G74) -> 3084 | K74: =IF(J74="","",J74*I74) -> 0 | M74: 18 | T74: =IF(S74="","",S74*R74) -> 
B75: 2 | C75: цоколь | G75: 5.8 | H75: 627 | J75: =IF(H75="","",H75*G75) -> 3636.6 | K75: =IF(J75="","",J75*I75) -> 0 | M75: 19 | T75: =IF(S75="","",S75*R75) -> 
B76: 3 | M76: 20
B77: 4 | M77: 21
B78: 5 | M78: 22
B79: 6 | M79: 23
B80: 7 | M80: 24
B81: 8 | N81: Итого дополнительная комплектация | S81: =(SUM(T74:T80)+SUM(J74:K90)) -> 6720.6
B82: 9
B83: 10
B84: 11 | O84: Итого сумма | S84: =S81+S52+S68 -> 131505.9352
B85: 12
B86: 13 | O86: Всего скидка | S86: =T69+T53 -> 0
B87: 14
B88: 15 | O88: Итого с учетом скидки | S88: =S84-S86 -> 131505.9352
B89: 16
B90: 17 | N90: =IF(S86=0,0%,S86/S84) -> 0 | O90: Технологи/производство

Sheet Столешницы_Багет_Цоколь_Козырек
D1: Заказ № | E1: =Расчет!D10 -> Лига | I1: Дата согласования | L1: =IF(Расчет!D18="","",Расчет!D18) -> 
I2: Срок изготовления | L2: =IF(Расчет!D20="","",Расчет!D20) -> 
B4: Столешница/отбортовочный профиль | L4: Багет
L12: Цоколь
L20: Стеновая панель
B24: Козырек/менсола
L32: Условные обозначения: | Q32: С условиями оформления и размерами заказа согласен.
L34: ∆ - кромить
L35: ○ - завал | Q35: Дата:
L36: Х - технический кант
L37: R - радиус | Q37: Подпись:
L38: = - стяжка (2 шт)
L39: e - еврозапил | T39: М.П.
L40: (ч.р.) - чистый размер

Sheet Инструкция по заполнению бланка
A1: 1. Расчетный бланк Дельта+ необходимо открывать в EXCEL в версии не ранее 2007.
A2: Для функционирования файла следует включить макросы (для информации пройдите по ссылке http://sirexcel.ru/makrosi_vba/kak-vklyuchit-ili-otklyuchit-makrosy-v-excel-2003-2007-i-2010/)
A3: 2. В случае сохранения файла под другим названием или в какие-либо месте с помощью "Сохранить как..". Выбираем тип файла "Книга EXCEL с поддержкой макросов"
A4: 3. Заполнение бланка:
A5: 3.1 "Шапка" бланка. Карта заказа, Менеджер, и т.д. заполняется вручную.
A6: 3.2 Блок "Стандартные модули"
A7: Выбираем номер позиции (программа переведет на лист "Прайс"). В столбце С выбираем необходимый номер позиции.
A8: Далее выбираем типоразмер из раскрывающегося списк в графе "Тип".
A9: Выбираем количество модулей в графе "Количество"
A10: В графе "Коллекция" выбираем коллекцию.
A11: В графе "Скидка" ставим вручную скидку.
A12: Автоматически заполняются все ячейке в текущей строке.
A13: 3.3. Блок "Нестандартные модули".
A14: Ячейки "Примечание", "Номер позиции", "Ширина", "Высота", "Глубина", "Количество" и "Цена" ставятся вручную. Коллекция выбирается из раскрывающегося списка.
A15: 3.4. Дополнительная комплектация заполняется вручную. Заполняем артикул в графе "Наименование", "Количество", "Цена"
A16: Итоговая стоимость заказа формируется в графе "Итого сумма с учетом скидки"
A17: 4. Печатный вид.
A18: для приведения бланка в печатную форму надимаем кнопку "Печать". Пустые строки в блоках "Стандартные позиции" и "Нестандартные позиции" автоматически скрываются. Далее - распчатываем, если необходимо.
A19: Для сброса заказа нажимаем кнопку "Новый заказ" (сохраняйте расчеты в отдельном файле перед нажаием кнопки "Новый заказ", т.к.е данные автоматичесик сбрасываются)
A20: 5. Для расчета заказа сразу с наценкой - в листе "Процент" ставим необходимую наценку.
A21: В расчетном бланке сразу цены по позициям будут с наценкой. На фабрику отправляем бланк с нулевой наценкой.
